{"text_format":"1","workbook":"xlsx","n_sheets":17,"sheets":["Personální údaje","Evidence docházky","Tabulky mzdy","Leden","Únor","Březen","Duben","Květen","Červen","Červenec","Srpen","Září","Říjen","Listopad","Prosinec","Tabulky daně","Roční zúčtování daně "],"not_rendered":{"charts":0,"images":0,"macros":1,"external_links":0,"defined_names":0,"comments":0,"pivot_tables":0},"unopened":[],"bounds":{"document_bytes":16777216,"sheet_cells":100000,"rows_first":2000,"rows_last":500,"rows_between":2000,"halvings":0,"cell_chars":16384,"cell_head_chars":4096},"cells_cut":0,"cells_raw":0,"read":"whole","date_system":"1900"}

{"sheet":"Personální údaje","index":0,"n_rows":7,"n_cols":14,"rows_kept":7,"cut":false,"hidden":false,"merged":[]}
[]
["Jméno a příjmení","Středisko","Adresa","Datum narození","Druh pracovního poměru","Osobní číslo","Rodné Číslo","Telefon","Číslo účtu","Jméno dítěte","Rodné číslo dítěte","Počet dětí","Podepsal prohlášení","Sleva poplatník"]
[null,null,null,null,null,1,null,null,null,null,null,null,null,{"$f":"IF(M3=\"ano\",2070,0)","v":0}]
[null,null,null,null,null,2,null,null,null,null,null,null,null,{"$f":"IF(M4=\"ano\",2070,0)","v":0}]
[null,null,null,null,null,3,null,null,null,null,null,null,null,0]
[null,null,null,null,null,4,null,null,null,null,null,null,null,0]
[null,null,null,null,null,5,null,null,null,null,null,null,null,0]

{"sheet":"Evidence docházky","index":1,"n_rows":107,"n_cols":40,"rows_kept":107,"cut":false,"hidden":false,"merged":[]}
[]
[null,null,"PÁ","SO","NE","PO","ÚT","ST","ČT","PÁ","SO","NE","PO","ÚT","ST","ČT","PÁ","SO","NE","PO","ÚT","ST","ČT","PÁ","SO","NE","PO","ÚT","ST","ČT","PÁ","SO","NE"]
["Osobní číslo zaměstnance","Jméno",null,null,null,null,null,null,null,null,null,null,null,null,null,null,null,null,null,null,null,null,null,null,null,null,null,null,null,null,null,null,null,"Celkem hodin","so+ne","noční","Dovolená","Svátek","Odměny","Stravné"]
[{"$f":"'Personální údaje'!F3","v":1},{"$f":"'Personální údaje'!A3","v":0},null,null,null,null,null,null,null,null,null,null,null,null,null,null,null,null,null,null,null,null,null,null,null,null,null,null,null,null,null,null,null,{"$f":"SUM(C4:AG4)","v":0},{"$f":"SUM(Y4+AF4+AG4)","v":0},{"$f":"H4+I4+P4+Q4+X4+Y4+AF4+AG4","v":0},0,0]
[{"$f":"'Personální údaje'!F4","v":2},{"$f":"'Personální údaje'!A4","v":0},null,null,null,null,null,null,null,null,null,null,null,null,null,null,null,null,null,null,null,null,null,null,null,null,null,null,null,null,null,null,null,{"$f":"SUM(C5:AG5)","v":0},{"$f":"SUM(Y5+AF5+AG5+K5)","v":0},null,0,0]
[{"$f":"'Personální údaje'!F5","v":3},{"$f":"'Personální údaje'!A5","v":0},null,null,null,null,null,null,null,null,null,null,null,null,null,null,null,null,null,null,null,null,null,null,null,null,null,null,null,null,null,null,null,{"$f":"SUM(C6:AG6)","v":0},{"$f":"SUM(Y6+AF6+AG6)","v":0},{"$f":"H6+I6+P6+Q6+X6+Y6+AF6+AG6","v":0},0,0]
[{"$f":"'Personální údaje'!F6","v":4},{"$f":"'Personální údaje'!A6","v":0},null,null,null,null,null,null,null,null,null,null,null,null,null,null,null,null,null,null,null,null,null,null,null,null,null,null,null,null,null,null,null,{"$f":"SUM(C7:AF7)","v":0},{"$f":"SUM(Y7+AF7+AG7+R7)","v":0},null,0,0]
[{"$f":"'Personální údaje'!F7","v":5},{"$f":"'Personální údaje'!A7","v":0},null,null,null,null,null,null,null,null,null,null,null,null,null,null,null,null,null,null,null,null,null,null,null,null,null,null,null,null,null,null,null,{"$f":"SUM(C8:AG8)","v":0},{"$f":"SUM(Y8+AF8+AG8)","v":0},null,0,0]
[]
[]
[null,null,"PO","ÚT","ST","ČT","PÁ","SO","NE","PO","ÚT","ST","ČT","PÁ","SO","NE","PO","ÚT","ST","ČT","PÁ","SO","NE","PO","ÚT","ST","ČT","PÁ","SO","NE","PO"]
["Osobní číslo zaměstnance","Jméno",1,2,3,4,5,6,7,8,9,10,11,12,13,14,15,16,17,18,19,20,21,22,23,24,25,26,27,28,29,"Celkem hodin","so+ne","noční","Dovolená","Svátek","Odměny","Stravné"]
[{"$f":"'Personální údaje'!F3","v":1},{"$f":"'Personální údaje'!A3","v":0},null,null,null,null,null,null,null,null,null,null,null,null,null,null,null,null,null,null,null,null,null,null,null,null,null,null,null,null,null,{"$f":"SUM(C13:AE13)","v":0},{"$f":"AD13+AC13+V13","v":0},{"$f":"E13+F13+M13+N13+U13+V13+AC13+AD13","v":0},0,0]
[{"$f":"'Personální údaje'!F4","v":2},{"$f":"'Personální údaje'!A4","v":0},null,null,null,null,null,null,null,null,null,null,null,null,null,null,null,null,null,null,null,null,null,null,null,null,null,null,null,null,null,{"$f":"SUM(C14:AE14)","v":0},{"$f":"AD14+AC14+V14+H14","v":0},null,0,0]
[{"$f":"'Personální údaje'!F5","v":3},{"$f":"'Personální údaje'!A5","v":0},null,null,null,null,null,null,null,null,null,null,null,null,null,null,null,null,null,null,null,null,null,null,null,null,null,null,null,null,null,{"$f":"SUM(C15:AE15)","v":0},{"$f":"AD15+AC15+V15","v":0},{"$f":"E15+F15+M15+N15+U15+V15+AC15+AD15","v":0},0,0]
[{"$f":"'Personální údaje'!F6","v":4},{"$f":"'Personální údaje'!A6","v":0},null,null,null,null,null,null,null,null,null,null,null,null,null,null,null,null,null,null,null,null,null,null,null,null,null,null,null,null,null,{"$f":"SUM(C16:AE16)","v":0},{"$f":"AD16+AC16+V16","v":0},null,0,0]
[{"$f":"'Personální údaje'!F7","v":5},{"$f":"'Personální údaje'!A7","v":0},null,null,null,null,null,null,null,null,null,null,null,null,null,null,null,null,null,null,null,null,null,null,null,null,null,null,null,null,null,{"$f":"SUM(C17:AE17)","v":0},{"$f":"AD17+AC17+V17+O17+H17","v":0},null,0,0]
[]
[]
[null,null,"ÚT","ST","ČT","PÁ","SO","NE","PO","ÚT","ST","ČT","PÁ","SO","NE","PO","ÚT","ST","ČT","PÁ","SO","NE","PO","ÚT","ST","ČT","PÁ","SO","NE","PO","ÚT","ST","ČT"]
["Osobní číslo zaměstnance","Jméno",1,2,3,4,5,6,7,8,9,10,11,12,13,14,15,16,17,18,19,20,21,22,23,24,25,26,27,28,29,30,31,"Celkem hodin","so+ne","noční","Dovolená","Svátek","Odměny","Stravné"]
[{"$f":"'Personální údaje'!F3","v":1},{"$f":"'Personální údaje'!A3","v":0},null,null,null,null,null,null,null,null,null,null,null,null,null,null,null,null,null,null,null,null,null,null,null,null,null,null,null,null,null,null,null,{"$f":"SUM(C22:AF22)","v":0},{"$f":"AC22+AB22+V22+U22+N22","v":0},{"$f":"E22+F22+M22+N22+U22+V22+AC22+AD22","v":0},0,{"$f":"AA22+AD22","v":0}]
[{"$f":"'Personální údaje'!F4","v":2},{"$f":"'Personální údaje'!A4","v":0},null,null,null,null,null,null,null,null,null,null,null,null,null,null,null,null,null,null,null,null,null,null,null,null,null,null,null,null,null,null,null,{"$f":"SUM(C23:AG23)","v":0},{"$f":"AC23+AB23+V23+U23+N23+G23","v":0},null,0,{"$f":"AA23+AD23","v":0}]
[{"$f":"'Personální údaje'!F5","v":3},{"$f":"'Personální údaje'!A5","v":0},null,null,null,null,null,null,null,null,null,null,null,null,null,null,null,null,null,null,null,null,null,null,null,null,null,null,null,null,null,null,null,{"$f":"SUM(C24:AG24)","v":0},{"$f":"AC24+AB24+V24+U24+N24","v":0},{"$f":"E24+F24+M24+N24+U24+V24+AC24+AD24","v":0},0,0]
[{"$f":"'Personální údaje'!F6","v":4},{"$f":"'Personální údaje'!A6","v":0},null,null,null,null,null,null,null,null,null,null,null,null,null,null,null,null,null,null,null,null,null,null,null,null,null,null,null,null,null,null,null,{"$f":"SUM(C25:AG25)","v":0},{"$f":"AC25+AB25+V25+U25+N25","v":0},null,0,0]
[{"$f":"'Personální údaje'!F7","v":5},{"$f":"'Personální údaje'!A7","v":0},null,null,null,null,null,null,null,null,null,null,null,null,null,null,null,null,null,null,null,null,null,null,null,null,null,null,null,null,null,null,null,{"$f":"SUM(C26:AG26)","v":0},{"$f":"AC26+AB26+V26+U26+N26","v":0},null,0,{"$f":"AA26+AD26","v":0}]
[]
[]
[null,null,"PÁ","SO","NE","PO","ÚT","ST","ČT","PÁ","SO","NE","PO","ÚT","ST","ČT","PÁ","SO","NE","PO","ÚT","ST","ČT","PÁ","SO","NE","PO","ÚT","ST","ČT","PÁ","SO"]
["Osobní číslo zaměstnance","Jméno",1,2,3,4,5,6,7,8,9,10,11,12,13,14,15,16,17,18,19,20,21,22,23,24,25,26,27,28,29,30,"Celkem hodin","so+ne","noční","Dovolená","Svátek","Odměny","Stravné"]
[{"$f":"'Personální údaje'!F3","v":1},{"$f":"'Personální údaje'!A3","v":0},null,null,null,null,null,null,null,null,null,null,null,null,null,null,null,null,null,null,null,null,null,null,null,null,null,null,null,null,null,null,{"$f":"SUM(C31:AF31)","v":0},{"$f":"AF31+Y31","v":0},{"$f":"H31+I31+P31+Q31+X31+Y31+AF31","v":0},0,0]
[{"$f":"'Personální údaje'!F4","v":2},{"$f":"'Personální údaje'!A4","v":0},null,null,null,null,null,null,null,null,null,null,null,null,null,null,null,null,null,null,null,null,null,null,null,null,null,null,null,null,null,null,{"$f":"SUM(C32:AF32)","v":0},{"$f":"AF32+Y32+K32","v":0},null,6,0]
[{"$f":"'Personální údaje'!F5","v":3},{"$f":"'Personální údaje'!A5","v":0},null,null,null,null,null,null,null,null,null,null,null,null,null,null,null,null,null,null,null,null,null,null,null,null,null,null,null,null,null,null,{"$f":"SUM(C33:AF33)","v":0},{"$f":"AF33+Y33","v":0},{"$f":"H33+I33+P33+Q33+X33+Y33+AF33","v":0},0,0]
[{"$f":"'Personální údaje'!F6","v":4},{"$f":"'Personální údaje'!A6","v":0},null,null,null,null,null,null,null,null,null,null,null,null,null,null,null,null,null,null,null,null,null,null,null,null,null,null,null,null,null,null,{"$f":"SUM(C34:AF34)","v":0},{"$f":"AF34+Y34+R34+K34","v":0},null,0,0]
[{"$f":"'Personální údaje'!F7","v":5},{"$f":"'Personální údaje'!A7","v":0},null,null,null,null,null,null,null,null,null,null,null,null,null,null,null,null,null,null,null,null,null,null,null,null,null,null,null,null,null,null,{"$f":"SUM(C35:AF35)","v":0},{"$f":"AF35+Y35","v":0},null,3,0]
[]
[]
[null,null,"NE","PO","ÚT","ST","ČT","PÁ","SO","NE","PO","ÚT","ST","ČT","PÁ","SO","NE","PO","ÚT","ST","ČT","PÁ","SO","NE","PO","ÚT","ST","ČT","PÁ","SO","NE","PO","ÚT"]
["Osobní číslo zaměstnance","Jméno",1,2,3,4,5,6,7,8,9,10,11,12,13,14,15,16,17,18,19,20,21,22,23,24,25,26,27,28,29,30,31,"Celkem hodin","so+ne","noční","Dovolená","Svátek","Odměny","Stravné"]
[{"$f":"'Personální údaje'!F3","v":1},{"$f":"'Personální údaje'!A3","v":0},null,null,null,null,null,null,null,null,null,null,null,null,null,null,null,null,null,null,null,null,null,null,null,null,null,null,null,null,null,null,null,{"$f":"SUM(C40:AG40)","v":0},{"$f":"X40+Q40+P40+J40+I40","v":0},{"$f":"C40+J40+K40+R40+S40+Z40+AA40","v":0},0,{"$f":"C40+J40","v":0}]
[{"$f":"'Personální údaje'!F4","v":2},{"$f":"'Personální údaje'!A4","v":0},null,null,null,null,null,null,null,null,null,null,null,null,null,null,null,null,null,null,null,null,null,null,null,null,null,null,null,null,null,null,null,{"$f":"SUM(C41:AG41)","v":0},{"$f":"X41+Q41+P41+J41+I41+AD41","v":0},null,0,{"$f":"C41+J41","v":0}]
[{"$f":"'Personální údaje'!F5","v":3},{"$f":"'Personální údaje'!A5","v":0},null,null,null,null,null,null,null,null,null,null,null,null,null,null,null,null,null,null,null,null,null,null,null,null,null,null,null,null,null,null,null,{"$f":"SUM(C42:AG42)","v":0},{"$f":"X42+Q42+P42+J42+I42","v":0},{"$f":"C42+J42+K42+R42+S42+Z42+AA42","v":0},0,0]
[{"$f":"'Personální údaje'!F6","v":4},{"$f":"'Personální údaje'!A6","v":0},null,null,null,null,null,null,null,null,null,null,null,null,null,null,null,null,null,null,null,null,null,null,null,null,null,null,null,null,null,null,null,{"$f":"SUM(C43:AG43)","v":0},{"$f":"X43+Q43+P43+J43+I43","v":0},null,0,0]
[{"$f":"'Personální údaje'!F7","v":5},{"$f":"'Personální údaje'!A7","v":0},null,null,null,null,null,null,null,null,null,null,null,null,null,null,null,null,null,null,null,null,null,null,null,null,null,null,null,null,null,null,null,{"$f":"SUM(C44:AG44)","v":0},{"$f":"X44+Q44+P44+J44+I44","v":0},null,2,0]
[]
[]
[null,null,"ST","ČT","PÁ","SO","NE","PO","ÚT","ST","ČT","PÁ","SO","NE","PO","ÚT","ST","ČT","PÁ","SO","NE","PO","ÚT","ST","ČT","PÁ","SO","NE","PO","ÚT","ST","ČT"]
["Osobní číslo zaměstnance","Jméno",1,2,3,4,5,6,7,8,9,10,11,12,13,14,15,16,17,18,19,20,21,22,23,24,25,26,27,28,29,30,"Celkem hodin","so+ne","noční","Dovolená","Svátek","Odměny","Stravné"]
[{"$f":"'Personální údaje'!F3","v":1},{"$f":"'Personální údaje'!A3","v":0},null,null,null,null,null,null,null,null,null,null,null,null,null,null,null,null,null,null,null,null,null,null,null,null,null,null,null,null,null,null,{"$f":"SUM(C49:AF49)","v":0},{"$f":"AB49+AA49+U49+T49+N49+M49+F49","v":0},{"$f":"E49+F49+M49+N49+U49+V49+AC49+AD49","v":0},0,0]
[{"$f":"'Personální údaje'!F4","v":2},{"$f":"'Personální údaje'!A4","v":0},null,null,null,null,null,null,null,null,null,null,null,null,null,null,null,null,null,null,null,null,null,null,null,null,null,null,null,null,null,null,{"$f":"SUM(C50:AF50)","v":0},{"$f":"AB50+AA50+U50+T50+N50+M50+F50","v":0},null,0,0]
[{"$f":"'Personální údaje'!F5","v":3},{"$f":"'Personální údaje'!A5","v":0},null,null,null,null,null,null,null,null,null,null,null,null,null,null,null,null,null,null,null,null,null,null,null,null,null,null,null,null,null,null,{"$f":"SUM(C51:AF51)","v":0},{"$f":"AB51+AA51+U51+T51+N51+M51+F51","v":0},{"$f":"E51+F51+M51+N51+U51+V51+AC51+AD51","v":0},0,0]
[{"$f":"'Personální údaje'!F6","v":4},{"$f":"'Personální údaje'!A6","v":0},null,null,null,null,null,null,null,null,null,null,null,null,null,null,null,null,null,null,null,null,null,null,null,null,null,null,null,null,null,null,{"$f":"SUM(C52:AF52)","v":0},{"$f":"AB52+AA52+U52+T52+N52+M52+F52","v":0},null,10,0]
[{"$f":"'Personální údaje'!F7","v":5},{"$f":"'Personální údaje'!A7","v":0},null,null,null,null,null,null,null,null,null,null,null,null,null,null,null,null,null,null,null,null,null,null,null,null,null,null,null,null,null,null,{"$f":"SUM(C53:AF53)","v":0},{"$f":"AB53+AA53+U53+T53+N53+M53+F53","v":0},null,2.5,0]
[]
[]
[null,null,"PÁ","SO","NE","PO","ÚT","ST","ČT","PÁ","SO","NE","PO","ÚT","ST","ČT","PÁ","SO","NE","PO","ÚT","ST","ČT","PÁ","SO","NE","PO","ÚT","ST","ČT","PÁ","SO","NE"]
["Osobní číslo zaměstnance","Jméno",1,2,3,4,5,6,7,8,9,10,11,12,13,14,15,16,17,18,19,20,21,22,23,24,25,26,27,28,29,30,31,"Celkem hodin","so+ne","noční","Dovolená","Svátek","Odměny","Stravné"]
[{"$f":"'Personální údaje'!F3","v":1},{"$f":"'Personální údaje'!A3","v":0},null,null,null,null,null,null,null,null,null,null,null,null,null,null,null,null,null,null,null,null,null,null,null,null,null,null,null,null,null,null,null,{"$f":"SUM(C58:AF58)","v":0},{"$f":"AF58+E58","v":0},{"$f":"G58+H58+O58+P58+W58+X58+AE58+AF58","v":0},96,{"$f":"G58+H58","v":0}]
[{"$f":"'Personální údaje'!F4","v":2},{"$f":"'Personální údaje'!A4","v":0},null,null,null,null,null,null,null,null,null,null,null,null,null,null,null,null,null,null,null,null,null,null,null,null,null,null,null,null,null,null,null,{"$f":"SUM(C59:AF59)","v":0},{"$f":"AF59+E59+Y59","v":0},null,72,{"$f":"G59+H59","v":0}]
[{"$f":"'Personální údaje'!F5","v":3},{"$f":"'Personální údaje'!A5","v":0},null,null,null,null,null,null,null,null,null,null,null,null,null,null,null,null,null,null,null,null,null,null,null,null,null,null,null,null,null,null,null,0,{"$f":"AF60+E60","v":0},{"$f":"G60+H60+O60+P60+W60+X60+AE60+AF60","v":0},96,0]
[{"$f":"'Personální údaje'!F6","v":4},{"$f":"'Personální údaje'!A6","v":0},null,null,null,null,null,null,null,null,null,null,null,null,null,null,null,null,null,null,null,null,null,null,null,null,null,null,null,null,null,null,null,0,{"$f":"AF61+E61+Y61","v":0},null,72,0]
[{"$f":"'Personální údaje'!F7","v":5},{"$f":"'Personální údaje'!A7","v":0},null,null,null,null,null,null,null,null,null,null,null,null,null,null,null,null,null,null,null,null,null,null,null,null,null,null,null,null,null,null,null,0,{"$f":"AF62+E62+Y62","v":0},null,72,0]
[]
[]
[null,null,"PO","ÚT","ST","ČT","PÁ","SO","NE","PO","ÚT","ST","ČT","PÁ","SO","NE","PO","ÚT","ST","ČT","PÁ","SO","NE","PO","ÚT","ST","ČT","PÁ","SO","NE","PO","ÚT","ST"]
["Osobní číslo zaměstnance","Jméno",1,2,3,4,5,6,7,8,9,10,11,12,13,14,15,16,17,18,19,20,21,22,23,24,25,26,27,28,29,30,31,"Celkem hodin","so+ne","noční","Dovolená","Svátek"]
[{"$f":"'Personální údaje'!F3","v":1},{"$f":"'Personální údaje'!A3","v":0},null,null,null,null,null,null,null,null,null,null,null,null,null,null,null,null,null,null,null,null,null,null,null,null,null,null,null,null,null,null,null,{"$f":"SUM(C67:AG67)","v":0},{"$f":"AD67+AC67+W67+V67+P67+O67+H67","v":0},{"$f":"G67+H67+O67+P67+W67+X67+AE67+AF67","v":0},23,0]
[{"$f":"'Personální údaje'!F4","v":2},{"$f":"'Personální údaje'!A4","v":0},null,null,null,null,null,null,null,null,null,null,null,null,null,null,null,null,null,null,null,null,null,null,null,null,null,null,null,null,null,null,null,{"$f":"SUM(C68:AG68)","v":0},{"$f":"AD68+AC68+W68+V68+P68+O68+H68","v":0},null,0,0]
[{"$f":"'Personální údaje'!F5","v":3},{"$f":"'Personální údaje'!A5","v":0},null,null,null,null,null,null,null,null,null,null,null,null,null,null,null,null,null,null,null,null,null,null,null,null,null,null,null,null,null,null,null,0,0,{"$f":"G69+H69+O69+P69+W69+X69+AE69+AF69","v":0},23,0]
[{"$f":"'Personální údaje'!F6","v":4},{"$f":"'Personální údaje'!A6","v":0},null,null,null,null,null,null,null,null,null,null,null,null,null,null,null,null,null,null,null,null,null,null,null,null,null,null,null,null,null,null,null,0,0,null,0,0]
[{"$f":"'Personální údaje'!F7","v":5},{"$f":"'Personální údaje'!A7","v":0},null,null,null,null,null,null,null,null,null,null,null,null,null,null,null,null,null,null,null,null,null,null,null,null,null,null,null,null,null,null,null,0,0,null,0,0]
[]
[]
[null,null,"ČT","PÁ","SO","NE","PO","ÚT","ST","ČT","PÁ","SO","NE","PO","ÚT","ST","ČT","PÁ","SO","NE","PO","ÚT","ST","ČT","PÁ","SO","NE","PO","ÚT","ST","ČT","PÁ"]
["Osobní číslo zaměstnance","Jméno",1,2,3,4,5,6,7,8,9,10,11,12,13,14,15,16,17,18,19,20,21,22,23,24,25,26,27,28,29,30,"Celkem hodin","so+ne","noční","Dovolená","Svátek","Odměny","Stravné"]
[{"$f":"'Personální údaje'!F3","v":1},{"$f":"'Personální údaje'!A3","v":0},null,null,null,null,null,null,null,null,null,null,null,null,null,null,null,null,null,null,null,null,null,null,null,null,null,null,null,null,null,null,{"$f":"SUM(C76:AF76)","v":0},{"$f":"F76","v":0},{"$f":"H76+I76+P76+Q76+X76+Y76+AF76","v":0},0,{"$f":"AD76","v":0}]
[{"$f":"'Personální údaje'!F4","v":2},{"$f":"'Personální údaje'!A4","v":0},null,null,null,null,null,null,null,null,null,null,null,null,null,null,null,null,null,null,null,null,null,null,null,null,null,null,null,null,null,null,{"$f":"SUM(C77:AF77)","v":0},{"$f":"F77","v":0},null,0,{"$f":"AD77","v":0}]
[{"$f":"'Personální údaje'!F5","v":3},{"$f":"'Personální údaje'!A5","v":0},null,null,null,null,null,null,null,null,null,null,null,null,null,null,null,null,null,null,null,null,null,null,null,null,null,null,null,null,null,null,0,{"$f":"F78","v":0},{"$f":"H78+I78+P78+Q78+X78+Y78+AF78","v":0},0,0]
[{"$f":"'Personální údaje'!F6","v":4},{"$f":"'Personální údaje'!A6","v":0},null,null,null,null,null,null,null,null,null,null,null,null,null,null,null,null,null,null,null,null,null,null,null,null,null,null,null,null,null,null,0,0,null,0,0]
[{"$f":"'Personální údaje'!F7","v":5},{"$f":"'Personální údaje'!A7","v":0},null,null,null,null,null,null,null,null,null,null,null,null,null,null,null,null,null,null,null,null,null,null,null,null,null,null,null,null,null,null,{"$f":"SUM(C80:AF80)","v":0},0,null,0,0]
[]
[]
[null,null,"SO","NE","PO","ÚT","ST","ČT","PÁ","SO","NE","PO","ÚT","ST","ČT","PÁ","SO","NE","PO","ÚT","ST","ČT","PÁ","SO","NE","PO","ÚT","ST","ČT","PÁ","SO","NE"]
["Osobní číslo zaměstnance","Jméno",1,2,3,4,5,6,7,8,9,10,11,12,13,14,15,16,17,18,19,20,21,22,23,24,25,26,27,28,29,30,"Celkem hodin","so+ne","noční","Dovolená","Svátek","Odměny","Stravné"]
[{"$f":"'Personální údaje'!F3","v":1},{"$f":"'Personální údaje'!A3","v":0},null,null,null,null,null,null,null,null,null,null,null,null,null,null,null,null,null,null,null,null,null,null,null,null,null,null,null,null,null,null,{"$f":"SUM(C85:AF85)","v":0},{"$f":"AF85+Y85+X85+R85+Q85+K85+J85","v":0},{"$f":"C85+J85+K85+R85+S85+Z85+AA85","v":0},0,{"$f":"AD85","v":0}]
[{"$f":"'Personální údaje'!F4","v":2},{"$f":"'Personální údaje'!A4","v":0},null,null,null,null,null,null,null,null,null,null,null,null,null,null,null,null,null,null,null,null,null,null,null,null,null,null,null,null,null,null,{"$f":"SUM(C86:AF86)","v":0},{"$f":"AF86+Y86+X86+R86+Q86+K86+J86","v":0},null,0,{"$f":"AD86","v":0}]
[{"$f":"'Personální údaje'!F5","v":3},{"$f":"'Personální údaje'!A5","v":0},null,null,null,null,null,null,null,null,null,null,null,null,null,null,null,null,null,null,null,null,null,null,null,null,null,null,null,null,null,null,0,0,{"$f":"C87+J87+K87+R87+S87+Z87+AA87","v":0},0,0]
[{"$f":"'Personální údaje'!F6","v":4},{"$f":"'Personální údaje'!A6","v":0},null,null,null,null,null,null,null,null,null,null,null,null,null,null,null,null,null,null,null,null,null,null,null,null,null,null,null,null,null,null,0,0,null,1.5,0]
[{"$f":"'Personální údaje'!F7","v":5},{"$f":"'Personální údaje'!A7","v":0},null,null,null,null,null,null,null,null,null,null,null,null,null,null,null,null,null,null,null,null,null,null,null,null,null,null,null,null,null,null,0,0,null,4.5,0]
[]
[]
[null,null,"ÚT","ST","ČT","PÁ","SO","NE","PO","ÚT","ST","ČT","PÁ","SO","NE","PO","ÚT","ST","ČT","PÁ","SO","NE","PO","ÚT","ST","ČT","PÁ","SO","NE","PO","ÚT","ST"]
["Osobní číslo zaměstnance","Jméno",1,2,3,4,5,6,7,8,9,10,11,12,13,14,15,16,17,18,19,20,21,22,23,24,25,26,27,28,29,30,"Celkem hodin","so+ne","noční","Dovolená","Svátek","Odměny","Stravné"]
[{"$f":"'Personální údaje'!F3","v":1},{"$f":"'Personální údaje'!A3","v":0},null,null,null,null,null,null,null,null,null,null,null,null,null,null,null,null,null,null,null,null,null,null,null,null,null,null,null,null,null,null,{"$f":"SUM(C94:AF94)","v":0},{"$f":"AC94+AB94+V94+U94+N94","v":0},{"$f":"E94+F94+M94+N94+U94+V94+AC94+AD94","v":0},11.5,{"$f":"S94","v":0}]
[{"$f":"'Personální údaje'!F4","v":2},{"$f":"'Personální údaje'!A4","v":0},null,null,null,null,null,null,null,null,null,null,null,null,null,null,null,null,null,null,null,null,null,null,null,null,null,null,null,null,null,null,{"$f":"SUM(C95:AF95)","v":0},{"$f":"AC95+AB95+V95+U95+N95","v":0},null,0,{"$f":"S95","v":0}]
[{"$f":"'Personální údaje'!F5","v":3},{"$f":"'Personální údaje'!A5","v":0},null,null,null,null,null,null,null,null,null,null,null,null,null,null,null,null,null,null,null,null,null,null,null,null,null,null,null,null,null,null,0,0,{"$f":"E96+F96+M96+N96+U96+V96+AC96+AD96","v":0},0,0]
[{"$f":"'Personální údaje'!F6","v":4},{"$f":"'Personální údaje'!A6","v":0},null,null,null,null,null,null,null,null,null,null,null,null,null,null,null,null,null,null,null,null,null,null,null,null,null,null,null,null,null,null,0,{"$f":"AC97+AB97+V97+U97+N97+G97","v":0},null,0,0]
[{"$f":"'Personální údaje'!F7","v":5},{"$f":"'Personální údaje'!A7","v":0},null,null,null,null,null,null,null,null,null,null,null,null,null,null,null,null,null,null,null,null,null,null,null,null,null,null,null,null,null,null,0,{"$f":"AC98+AB98+V98+U98+N98+G98","v":0},null,10.5,0]
[]
[]
[null,null,"ČT","PÁ","SO","NE","PO","ÚT","ST","ČT","PÁ","SO","NE","PO","ÚT","ST","ČT","PÁ","SO","NE","PO","ÚT","ST","ČT","PÁ","SO","NE","PO","ÚT","ST","ČT","PÁ","SO"]
["Osobní číslo zaměstnance","Jméno",1,2,3,4,5,6,7,8,9,10,11,12,13,14,15,16,17,18,19,20,21,22,23,24,25,26,27,28,29,30,31,"Celkem hodin","so+ne","noční","Dovolená","Svátek","Odměny","Stravné"]
[{"$f":"'Personální údaje'!F3","v":1},{"$f":"'Personální údaje'!A3","v":0},null,null,null,null,null,null,null,null,null,null,null,null,null,null,null,null,null,null,null,null,null,null,null,null,null,null,null,null,null,null,null,{"$f":"SUM(C103:AG103)","v":0},{"$f":"AA103+T103+S103+M103+L103+F103+E103","v":0},{"$f":"E103+F103+M103+N103+U103+V103+AC103+AD103","v":0},71,0]
[{"$f":"'Personální údaje'!F4","v":2},{"$f":"'Personální údaje'!A4","v":0},null,null,null,null,null,null,null,null,null,null,null,null,null,null,null,null,null,null,null,null,null,null,null,null,null,null,null,null,null,null,null,{"$f":"SUM(C104:AG104)","v":0},{"$f":"AA104+T104+S104+M104+L104+F104+E104","v":0},null,75,0]
[{"$f":"'Personální údaje'!F5","v":3},{"$f":"'Personální údaje'!A5","v":0},null,null,null,null,null,null,null,null,null,null,null,null,null,null,null,null,null,null,null,null,null,null,null,null,null,null,null,null,null,null,null,0,0,{"$f":"E105+F105+M105+N105+U105+V105+AC105+AD105","v":0},71,0]
[{"$f":"'Personální údaje'!F6","v":4},{"$f":"'Personální údaje'!A6","v":0},null,null,null,null,null,null,null,null,null,null,null,null,null,null,null,null,null,null,null,null,null,null,null,null,null,null,null,null,null,null,null,0,0,null,75,0]
[{"$f":"'Personální údaje'!F7","v":5},{"$f":"'Personální údaje'!A7","v":0},null,null,null,null,null,null,null,null,null,null,null,null,null,null,null,null,null,null,null,null,null,null,null,null,null,null,null,null,null,null,null,0,0,null,75,0]

{"sheet":"Tabulky mzdy","index":2,"n_rows":97,"n_cols":17,"rows_kept":97,"cut":false,"hidden":false,"merged":[]}
[]
[]
[null,"Leden"]
[null,"Osobní číslo zaměstnance","Jméno","Středisko","Odpracováno hod.","Tarifní mzda","Prům. hod. výdělek","so+ne (hod)","Příplatek SO+ NE","Noční (hod)","Noční příplatek","Odměna","Řádná dovolená","Náhrada za svátek","Stravné","Sleva-poplatník","počet dětí"]
[null,{"$f":"'Personální údaje'!F3","v":1},{"$f":"'Evidence docházky'!B4","v":0},{"$f":"'Personální údaje'!B3","v":0},{"$f":"'Evidence docházky'!AH4","v":0},null,null,{"$f":"'Evidence docházky'!AI4","v":0},{"$f":"G5/100*25","v":0},{"$f":"'Evidence docházky'!AJ4","v":0},{"$f":"G5/100*20","v":0},{"$f":"'Evidence docházky'!AM4","v":0},null,{"$f":"'Evidence docházky'!AL4","v":0},{"$f":"'Evidence docházky'!AN4","v":0},{"$f":"'Personální údaje'!N3","v":0},{"$f":"'Personální údaje'!L3","v":0}]
[null,{"$f":"'Personální údaje'!F4","v":2},{"$f":"'Evidence docházky'!B5","v":0},{"$f":"'Personální údaje'!B4","v":0},{"$f":"'Evidence docházky'!AH5","v":0},null,null,{"$f":"'Evidence docházky'!AI5","v":0},{"$f":"G6/100*25","v":0},0,{"$f":"G6/100*20","v":0},{"$f":"'Evidence docházky'!AM5","v":0},null,{"$f":"'Evidence docházky'!AL5","v":0},{"$f":"'Evidence docházky'!AN5","v":0},{"$f":"'Personální údaje'!N4","v":0},{"$f":"'Personální údaje'!L4","v":0}]
[null,{"$f":"'Personální údaje'!F5","v":3},{"$f":"'Evidence docházky'!B6","v":0},{"$f":"'Personální údaje'!B6","v":0},{"$f":"'Evidence docházky'!AH6","v":0},null,null,{"$f":"'Evidence docházky'!AI6","v":0},0,{"$f":"'Evidence docházky'!AJ6","v":0},0,{"$f":"'Evidence docházky'!AM6","v":0},null,{"$f":"'Evidence docházky'!AL6","v":0},{"$f":"'Evidence docházky'!AN6","v":0},{"$f":"'Personální údaje'!N5","v":0},{"$f":"'Personální údaje'!L5","v":0}]
[null,{"$f":"'Personální údaje'!F6","v":4},{"$f":"'Evidence docházky'!B7","v":0},{"$f":"'Personální údaje'!B6","v":0},{"$f":"'Evidence docházky'!AH7","v":0},null,null,{"$f":"'Evidence docházky'!AI7","v":0},0,0,0,{"$f":"'Evidence docházky'!AM7","v":0},null,{"$f":"'Evidence docházky'!AL7","v":0},{"$f":"'Evidence docházky'!AN7","v":0},{"$f":"'Personální údaje'!N7","v":0},{"$f":"'Personální údaje'!L6","v":0}]
[null,{"$f":"'Personální údaje'!F7","v":5},{"$f":"'Evidence docházky'!B8","v":0},{"$f":"'Personální údaje'!B7","v":0},{"$f":"'Evidence docházky'!AH8","v":0},null,null,{"$f":"'Evidence docházky'!AI8","v":0},{"$f":"G9/100*25","v":0},0,0,{"$f":"'Evidence docházky'!AM8","v":0},null,{"$f":"'Evidence docházky'!AL8","v":0},{"$f":"'Evidence docházky'!AN8","v":0},{"$f":"'Personální údaje'!N8","v":0},{"$f":"'Personální údaje'!L7","v":0}]
[]
[null,"Únor"]
[null,"Osobní číslo zaměstnance","Jméno","Středisko","Odpracováno hod.","Tarifní mzda","Prům. hod. výdělek","so+ne(hod)","Příplatek SO+ NE","Noční (hod)","Noční příplatek","Odměna","Řádná dovolená","Náhrada za svátek","Stravné","Sleva-poplatník","počet dětí"]
[null,{"$f":"'Personální údaje'!F3","v":1},{"$f":"'Evidence docházky'!B22","v":0},{"$f":"'Personální údaje'!B3","v":0},{"$f":"'Evidence docházky'!AF13","v":0},null,null,{"$f":"'Evidence docházky'!AG13","v":0},{"$f":"G13/100*25","v":0},{"$f":"'Evidence docházky'!AH13","v":0},{"$f":"G13/100*20","v":0},{"$f":"'Evidence docházky'!AK13","v":0},null,{"$f":"'Evidence docházky'!AJ13","v":0},{"$f":"'Evidence docházky'!AL13","v":0},{"$f":"'Personální údaje'!N3","v":0},{"$f":"'Personální údaje'!L3","v":0}]
[null,{"$f":"'Personální údaje'!F4","v":2},{"$f":"'Evidence docházky'!B23","v":0},{"$f":"'Personální údaje'!B4","v":0},{"$f":"'Evidence docházky'!AF14","v":0},null,null,{"$f":"'Evidence docházky'!AG14","v":0},{"$f":"G14/100*25","v":0},0,{"$f":"G14/100*20","v":0},{"$f":"'Evidence docházky'!AK14","v":0},null,{"$f":"'Evidence docházky'!AJ14","v":0},{"$f":"'Evidence docházky'!AL14","v":0},{"$f":"'Personální údaje'!N4","v":0},{"$f":"'Personální údaje'!L4","v":0}]
[null,{"$f":"'Personální údaje'!F5","v":3},{"$f":"'Evidence docházky'!B24","v":0},{"$f":"'Personální údaje'!B5","v":0},{"$f":"'Evidence docházky'!AF15","v":0},null,null,{"$f":"'Evidence docházky'!AG15","v":0},0,{"$f":"'Evidence docházky'!AH15","v":0},0,{"$f":"'Evidence docházky'!AK15","v":0},null,{"$f":"'Evidence docházky'!AJ15","v":0},{"$f":"'Evidence docházky'!AL15","v":0},{"$f":"'Personální údaje'!N5","v":0},{"$f":"'Personální údaje'!L5","v":0}]
[null,{"$f":"'Personální údaje'!F6","v":4},{"$f":"'Evidence docházky'!B25","v":0},{"$f":"'Personální údaje'!B6","v":0},{"$f":"'Evidence docházky'!AF16","v":0},null,null,{"$f":"'Evidence docházky'!AG16","v":0},0,null,0,{"$f":"'Evidence docházky'!AK16","v":0},null,{"$f":"'Evidence docházky'!AJ16","v":0},{"$f":"'Evidence docházky'!AL16","v":0},{"$f":"'Personální údaje'!N6","v":0},{"$f":"'Personální údaje'!L6","v":0}]
[null,{"$f":"'Personální údaje'!F7","v":5},{"$f":"'Evidence docházky'!B26","v":0},{"$f":"'Personální údaje'!B7","v":0},{"$f":"'Evidence docházky'!AF17","v":0},null,null,{"$f":"'Evidence docházky'!AG17","v":0},0,0,0,{"$f":"'Evidence docházky'!AK17","v":0},null,{"$f":"'Evidence docházky'!AL8","v":0},{"$f":"'Evidence docházky'!AL17","v":0},{"$f":"'Personální údaje'!N7","v":0},{"$f":"'Personální údaje'!L7","v":0}]
[]
[null,"Březen"]
[null,"Osobní číslo zaměstnance","Jméno","Středisko","Odpracováno hod.","Tarifní mzda","Prům. hod. výdělek","so+ne (hod)","Příplatek SO+ NE","Noční (hod)","Noční příplatek","Odměna","Řádná dovolená","Náhrada za svátek","Stravné","Sleva-poplatník","počet dětí"]
[null,{"$f":"'Personální údaje'!F3","v":1},{"$f":"'Evidence docházky'!B22","v":0},{"$f":"'Personální údaje'!B3","v":0},{"$f":"'Evidence docházky'!AH22","v":0},null,null,{"$f":"'Evidence docházky'!AI22","v":0},{"$f":"G21/100*25","v":0},{"$f":"'Evidence docházky'!AJ22","v":0},{"$f":"G21/100*20","v":0},{"$f":"'Evidence docházky'!AM22","v":0},null,{"$f":"'Evidence docházky'!AL22","v":0},{"$f":"'Evidence docházky'!AN22","v":0},{"$f":"'Personální údaje'!N3","v":0},{"$f":"'Personální údaje'!L3","v":0}]
[null,{"$f":"'Personální údaje'!F4","v":2},{"$f":"'Evidence docházky'!B23","v":0},{"$f":"'Personální údaje'!B4","v":0},{"$f":"'Evidence docházky'!AH23","v":0},null,null,{"$f":"'Evidence docházky'!AI23","v":0},{"$f":"G22/100*25","v":0},0,{"$f":"G22/100*20","v":0},{"$f":"'Evidence docházky'!AM23","v":0},null,{"$f":"'Evidence docházky'!AL23","v":0},{"$f":"'Evidence docházky'!AM32","v":0},{"$f":"'Personální údaje'!N4","v":0},{"$f":"'Personální údaje'!L4","v":0}]
[null,{"$f":"'Personální údaje'!F5","v":3},{"$f":"'Evidence docházky'!B24","v":0},{"$f":"'Personální údaje'!B5","v":0},{"$f":"'Evidence docházky'!AH24","v":0},null,null,{"$f":"'Evidence docházky'!AI24","v":0},0,{"$f":"'Evidence docházky'!AH15","v":0},0,{"$f":"'Evidence docházky'!AM24","v":0},null,{"$f":"'Evidence docházky'!AL24","v":0},{"$f":"'Evidence docházky'!AM33","v":0},{"$f":"'Personální údaje'!N5","v":0},{"$f":"'Personální údaje'!L5","v":0}]
[null,{"$f":"'Personální údaje'!F6","v":4},{"$f":"'Evidence docházky'!B25","v":0},{"$f":"'Personální údaje'!B6","v":0},{"$f":"'Evidence docházky'!AH25","v":0},null,null,{"$f":"'Evidence docházky'!AI25","v":0},0,null,0,{"$f":"'Evidence docházky'!AM25","v":0},null,{"$f":"'Evidence docházky'!AL25","v":0},{"$f":"'Evidence docházky'!AM34","v":0},{"$f":"'Personální údaje'!N6","v":0},{"$f":"'Personální údaje'!L6","v":0}]
[null,{"$f":"'Personální údaje'!F7","v":5},{"$f":"'Evidence docházky'!B26","v":0},{"$f":"'Personální údaje'!B7","v":0},{"$f":"'Evidence docházky'!AH26","v":0},null,null,{"$f":"'Evidence docházky'!AI26","v":0},0,0,0,{"$f":"'Evidence docházky'!AM26","v":0},null,{"$f":"'Evidence docházky'!AL26","v":0},{"$f":"'Evidence docházky'!AM35","v":0},{"$f":"'Personální údaje'!N7","v":0},{"$f":"'Personální údaje'!L7","v":0}]
[]
[null,"Duben"]
[null,"Osobní číslo zaměstnance","Jméno","Středisko","Odpracováno hod.","Tarifní mzda","Prům. hod. výdělek","so+ne (hod)","Příplatek SO+ NE","Noční (hod)","Noční příplatek","Odměna","Řádná dovolená","Náhrada za svátek","Stravné","Sleva-poplatník","počet dětí"]
[null,{"$f":"'Personální údaje'!F3","v":1},{"$f":"'Evidence docházky'!B31","v":0},{"$f":"'Personální údaje'!B3","v":0},{"$f":"'Evidence docházky'!AG31","v":0},null,null,{"$f":"'Evidence docházky'!AH31","v":0},{"$f":"G29/100*25","v":0},{"$f":"'Evidence docházky'!AI31","v":0},{"$f":"G29/100*20","v":0},{"$f":"'Evidence docházky'!AL31","v":0},null,{"$f":"'Evidence docházky'!AK31","v":0},{"$f":"'Evidence docházky'!AM31","v":0},{"$f":"'Personální údaje'!N3","v":0},{"$f":"'Personální údaje'!L3","v":0}]
[null,{"$f":"'Personální údaje'!F4","v":2},{"$f":"'Evidence docházky'!B23","v":0},{"$f":"'Personální údaje'!B4","v":0},{"$f":"'Evidence docházky'!AG32","v":0},null,null,{"$f":"'Evidence docházky'!AH32","v":0},{"$f":"G30/100*25","v":0},0,{"$f":"G30/100*20","v":0},{"$f":"'Evidence docházky'!AL32","v":0},null,{"$f":"'Evidence docházky'!AK32","v":0},{"$f":"'Evidence docházky'!AM32","v":0},{"$f":"'Personální údaje'!N4","v":0},{"$f":"'Personální údaje'!L4","v":0}]
[null,{"$f":"'Personální údaje'!F5","v":3},{"$f":"'Evidence docházky'!B24","v":0},{"$f":"'Personální údaje'!B5","v":0},{"$f":"'Evidence docházky'!AG33","v":0},null,null,{"$f":"'Evidence docházky'!AH33","v":0},0,{"$f":"'Evidence docházky'!AI33","v":0},0,{"$f":"'Evidence docházky'!AL33","v":0},null,{"$f":"'Evidence docházky'!AK33","v":0},{"$f":"'Evidence docházky'!AM33","v":0},{"$f":"'Personální údaje'!N5","v":0},{"$f":"'Personální údaje'!L5","v":0}]
[null,{"$f":"'Personální údaje'!F6","v":4},{"$f":"'Evidence docházky'!B25","v":0},{"$f":"'Personální údaje'!B6","v":0},{"$f":"'Evidence docházky'!AG34","v":0},null,null,{"$f":"'Evidence docházky'!AH34","v":0},0,null,0,{"$f":"'Evidence docházky'!AL34","v":0},null,{"$f":"'Evidence docházky'!AK34","v":0},{"$f":"'Evidence docházky'!AM34","v":0},{"$f":"'Personální údaje'!N6","v":0},{"$f":"'Personální údaje'!L6","v":0}]
[null,{"$f":"'Personální údaje'!F7","v":5},{"$f":"'Evidence docházky'!B35","v":0},{"$f":"'Personální údaje'!B7","v":0},{"$f":"'Evidence docházky'!AG35","v":0},null,null,{"$f":"'Evidence docházky'!AH35","v":0},0,0,0,{"$f":"'Evidence docházky'!AL35","v":0},null,{"$f":"'Evidence docházky'!AK35","v":0},{"$f":"'Evidence docházky'!AM35","v":0},{"$f":"'Personální údaje'!N7","v":0},{"$f":"'Personální údaje'!L7","v":0}]
[]
[null,"Květen"]
[null,"Osobní číslo zaměstnance","Jméno","Středisko","Odpracováno hod.","Tarifní mzda","Prům. hod. výdělek","so+ne (hod)","Příplatek SO+ NE","Noční (hod)","Noční příplatek","Odměna","Řádná dovolená","Náhrada za svátek","Stravné","Sleva-poplatník","počet dětí"]
[null,{"$f":"'Personální údaje'!F3","v":1},{"$f":"'Evidence docházky'!B40","v":0},{"$f":"'Personální údaje'!B3","v":0},{"$f":"'Evidence docházky'!AH40","v":0},null,null,{"$f":"'Evidence docházky'!AI40","v":0},{"$f":"G37/100*25","v":0},{"$f":"'Evidence docházky'!AJ40","v":0},{"$f":"G37/100*20","v":0},{"$f":"'Evidence docházky'!AM40","v":0},null,{"$f":"'Evidence docházky'!AL40","v":0},{"$f":"'Evidence docházky'!AN40","v":0},{"$f":"'Personální údaje'!N3","v":0},{"$f":"'Personální údaje'!L3","v":0}]
[null,{"$f":"'Personální údaje'!F4","v":2},{"$f":"'Evidence docházky'!B41","v":0},{"$f":"'Personální údaje'!B4","v":0},{"$f":"'Evidence docházky'!AH41","v":0},null,null,{"$f":"'Evidence docházky'!AI41","v":0},{"$f":"G38/100*25","v":0},0,{"$f":"G38/100*20","v":0},{"$f":"'Evidence docházky'!AM41","v":0},null,{"$f":"'Evidence docházky'!AL41","v":0},{"$f":"'Evidence docházky'!AN41","v":0},{"$f":"'Personální údaje'!N4","v":0},{"$f":"'Personální údaje'!L4","v":0}]
[null,{"$f":"'Personální údaje'!F5","v":3},{"$f":"'Evidence docházky'!B42","v":0},{"$f":"'Personální údaje'!B5","v":0},{"$f":"'Evidence docházky'!AH42","v":0},null,null,{"$f":"'Evidence docházky'!AI42","v":0},0,{"$f":"'Evidence docházky'!AJ42","v":0},0,{"$f":"'Evidence docházky'!AM42","v":0},null,{"$f":"'Evidence docházky'!AL42","v":0},{"$f":"'Evidence docházky'!AN42","v":0},{"$f":"'Personální údaje'!N5","v":0},{"$f":"'Personální údaje'!L5","v":0}]
[null,{"$f":"'Personální údaje'!F6","v":4},{"$f":"'Evidence docházky'!B43","v":0},{"$f":"'Personální údaje'!B6","v":0},{"$f":"'Evidence docházky'!AH43","v":0},null,null,{"$f":"'Evidence docházky'!AI43","v":0},0,null,0,{"$f":"'Evidence docházky'!AM43","v":0},null,{"$f":"'Evidence docházky'!AL43","v":0},{"$f":"'Evidence docházky'!AN43","v":0},{"$f":"'Personální údaje'!N6","v":0},{"$f":"'Personální údaje'!L6","v":0}]
[null,{"$f":"'Personální údaje'!F7","v":5},{"$f":"'Evidence docházky'!B44","v":0},{"$f":"'Personální údaje'!B7","v":0},{"$f":"'Evidence docházky'!AH44","v":0},null,null,{"$f":"'Evidence docházky'!AI44","v":0},0,0,0,{"$f":"'Evidence docházky'!AM44","v":0},null,{"$f":"'Evidence docházky'!AL44","v":0},{"$f":"'Evidence docházky'!AN44","v":0},{"$f":"'Personální údaje'!N7","v":0},{"$f":"'Personální údaje'!L7","v":0}]
[]
[null,"Červen"]
[null,"Osobní číslo zaměstnance","Jméno","Středisko","Odpracováno hod.","Tarifní mzda","Prům. hod. výdělek","so+ne (hod)","Příplatek SO+ NE","Noční (hod)","Noční příplatek","Odměna","Řádná dovolená","Náhrada za svátek","Stravné","Sleva-poplatník","počet dětí"]
[null,{"$f":"'Personální údaje'!F3","v":1},{"$f":"'Evidence docházky'!B49","v":0},{"$f":"'Personální údaje'!B3","v":0},{"$f":"'Evidence docházky'!AG49","v":0},null,null,{"$f":"'Evidence docházky'!AH49","v":0},{"$f":"G45/100*25","v":0},{"$f":"'Evidence docházky'!AI49","v":0},{"$f":"G45/100*20","v":0},{"$f":"'Evidence docházky'!AL49","v":0},null,{"$f":"'Evidence docházky'!AK49","v":0},{"$f":"'Evidence docházky'!AM49","v":0},{"$f":"'Personální údaje'!N3","v":0},{"$f":"'Personální údaje'!L3","v":0}]
[null,{"$f":"'Personální údaje'!F4","v":2},{"$f":"'Evidence docházky'!B50","v":0},{"$f":"'Personální údaje'!B4","v":0},{"$f":"'Evidence docházky'!AG50","v":0},null,null,{"$f":"'Evidence docházky'!AH50","v":0},{"$f":"G46/100*25","v":0},0,{"$f":"G46/100*20","v":0},{"$f":"'Evidence docházky'!AL50","v":0},null,{"$f":"'Evidence docházky'!AK50","v":0},{"$f":"'Evidence docházky'!AM50","v":0},{"$f":"'Personální údaje'!N4","v":0},{"$f":"'Personální údaje'!L4","v":0}]
[null,{"$f":"'Personální údaje'!F5","v":3},{"$f":"'Evidence docházky'!B51","v":0},{"$f":"'Personální údaje'!B5","v":0},{"$f":"'Evidence docházky'!AG51","v":0},null,null,{"$f":"'Evidence docházky'!AH51","v":0},0,{"$f":"'Evidence docházky'!AI51","v":0},0,{"$f":"'Evidence docházky'!AL51","v":0},null,{"$f":"'Evidence docházky'!AK51","v":0},{"$f":"'Evidence docházky'!AM51","v":0},{"$f":"'Personální údaje'!N5","v":0},{"$f":"'Personální údaje'!L5","v":0}]
[null,{"$f":"'Personální údaje'!F6","v":4},{"$f":"'Evidence docházky'!B52","v":0},{"$f":"'Personální údaje'!B6","v":0},{"$f":"'Evidence docházky'!AG52","v":0},null,null,{"$f":"'Evidence docházky'!AH52","v":0},0,0,0,{"$f":"'Evidence docházky'!AL52","v":0},null,{"$f":"'Evidence docházky'!AK52","v":0},{"$f":"'Evidence docházky'!AM52","v":0},{"$f":"'Personální údaje'!N6","v":0},{"$f":"'Personální údaje'!L6","v":0}]
[null,{"$f":"'Personální údaje'!F7","v":5},{"$f":"'Evidence docházky'!B53","v":0},{"$f":"'Personální údaje'!B7","v":0},{"$f":"'Evidence docházky'!AG53","v":0},null,null,{"$f":"'Evidence docházky'!AH53","v":0},0,0,0,{"$f":"'Evidence docházky'!AL53","v":0},null,{"$f":"'Evidence docházky'!AK53","v":0},{"$f":"'Evidence docházky'!AM53","v":0},{"$f":"'Personální údaje'!N7","v":0},{"$f":"'Personální údaje'!L7","v":0}]
[]
[null,"Červenec"]
[null,"Osobní číslo zaměstnance","Jméno","Středisko","Odpracováno hod.","Tarifní mzda","Prům. hod. výdělek","so+ne (hod)","Příplatek SO+ NE","Noční (hod)","Noční příplatek","Odměna","Řádná dovolená","Náhrada za svátek","Stravné","Sleva-poplatník","počet dětí"]
[null,{"$f":"'Personální údaje'!F3","v":1},{"$f":"'Evidence docházky'!B58","v":0},{"$f":"'Personální údaje'!B3","v":0},{"$f":"'Evidence docházky'!AH58","v":0},null,null,{"$f":"'Evidence docházky'!AI58","v":0},{"$f":"G53/100*25","v":0},{"$f":"'Evidence docházky'!AJ58","v":0},{"$f":"G53/100*20","v":0},{"$f":"'Evidence docházky'!AM58","v":0},null,{"$f":"'Evidence docházky'!AL58","v":0},{"$f":"'Evidence docházky'!AN58","v":0},{"$f":"'Personální údaje'!N3","v":0},{"$f":"'Personální údaje'!L3","v":0}]
[null,{"$f":"'Personální údaje'!F4","v":2},{"$f":"'Evidence docházky'!B59","v":0},{"$f":"'Personální údaje'!B4","v":0},{"$f":"'Evidence docházky'!AH59","v":0},null,null,{"$f":"'Evidence docházky'!AI59","v":0},{"$f":"G54/100*25","v":0},0,{"$f":"G54/100*20","v":0},{"$f":"'Evidence docházky'!AM59","v":0},null,{"$f":"'Evidence docházky'!AL59","v":0},{"$f":"'Evidence docházky'!AN59","v":0},{"$f":"'Personální údaje'!N4","v":0},{"$f":"'Personální údaje'!L4","v":0}]
[null,{"$f":"'Personální údaje'!F5","v":3},{"$f":"'Evidence docházky'!B60","v":0},{"$f":"'Personální údaje'!B5","v":0},{"$f":"'Evidence docházky'!AH60","v":0},null,null,{"$f":"'Evidence docházky'!AI60","v":0},0,{"$f":"'Evidence docházky'!AJ60","v":0},0,{"$f":"'Evidence docházky'!AM60","v":0},null,{"$f":"'Evidence docházky'!AL60","v":0},{"$f":"'Evidence docházky'!AN60","v":0},{"$f":"'Personální údaje'!N5","v":0},{"$f":"'Personální údaje'!L5","v":0}]
[null,{"$f":"'Personální údaje'!F6","v":4},{"$f":"'Evidence docházky'!B61","v":0},{"$f":"'Personální údaje'!B6","v":0},{"$f":"'Evidence docházky'!AH61","v":0},null,null,{"$f":"'Evidence docházky'!AI61","v":0},0,0,0,{"$f":"'Evidence docházky'!AM61","v":0},null,{"$f":"'Evidence docházky'!AL61","v":0},{"$f":"'Evidence docházky'!AN61","v":0},{"$f":"'Personální údaje'!N6","v":0},{"$f":"'Personální údaje'!L6","v":0}]
[null,{"$f":"'Personální údaje'!F7","v":5},{"$f":"'Evidence docházky'!B62","v":0},{"$f":"'Personální údaje'!B7","v":0},{"$f":"'Evidence docházky'!AH62","v":0},null,null,{"$f":"'Evidence docházky'!AI62","v":0},0,0,0,{"$f":"'Evidence docházky'!AM62","v":0},null,{"$f":"'Evidence docházky'!AL62","v":0},{"$f":"'Evidence docházky'!AN62","v":0},{"$f":"'Personální údaje'!N7","v":0},{"$f":"'Personální údaje'!L7","v":0}]
[]
[null,"Srpen"]
[null,"Osobní číslo zaměstnance","Jméno","Středisko","Odpracováno hod.","Tarifní mzda","Prům. hod. výdělek","so+ne (hod)","Příplatek SO+ NE","Noční (hod)","Noční příplatek","Odměna","Řádná dovolená","Náhrada za svátek","Stravné","Sleva-poplatník","počet dětí"]
[null,{"$f":"'Personální údaje'!F3","v":1},{"$f":"'Evidence docházky'!B67","v":0},{"$f":"'Personální údaje'!B3","v":0},{"$f":"'Evidence docházky'!AH67","v":0},null,null,{"$f":"'Evidence docházky'!AI67","v":0},{"$f":"G61/100*25","v":0},{"$f":"'Evidence docházky'!AJ67","v":0},{"$f":"G61/100*20","v":0},{"$f":"'Evidence docházky'!AM67","v":0},null,{"$f":"'Evidence docházky'!AL67","v":0},{"$f":"'Evidence docházky'!AN67","v":0},{"$f":"'Personální údaje'!N3","v":0},{"$f":"'Personální údaje'!L3","v":0}]
[null,{"$f":"'Personální údaje'!F4","v":2},{"$f":"'Evidence docházky'!B68","v":0},{"$f":"'Personální údaje'!B4","v":0},{"$f":"'Evidence docházky'!AH68","v":0},null,null,{"$f":"'Evidence docházky'!AI68","v":0},{"$f":"G62/100*25","v":0},0,{"$f":"G62/100*20","v":0},{"$f":"'Evidence docházky'!AM68","v":0},null,{"$f":"'Evidence docházky'!AL68","v":0},{"$f":"'Evidence docházky'!AN68","v":0},{"$f":"'Personální údaje'!N4","v":0},{"$f":"'Personální údaje'!L4","v":0}]
[null,{"$f":"'Personální údaje'!F5","v":3},{"$f":"'Evidence docházky'!B69","v":0},{"$f":"'Personální údaje'!B5","v":0},{"$f":"'Evidence docházky'!AH69","v":0},null,null,{"$f":"'Evidence docházky'!AI69","v":0},0,{"$f":"'Evidence docházky'!AJ69","v":0},0,{"$f":"'Evidence docházky'!AM69","v":0},null,{"$f":"'Evidence docházky'!AL69","v":0},{"$f":"'Evidence docházky'!AN69","v":0},{"$f":"'Personální údaje'!N5","v":0},{"$f":"'Personální údaje'!L5","v":0}]
[null,{"$f":"'Personální údaje'!F6","v":4},{"$f":"'Evidence docházky'!B70","v":0},{"$f":"'Personální údaje'!B6","v":0},{"$f":"'Evidence docházky'!AH70","v":0},null,null,{"$f":"'Evidence docházky'!AI70","v":0},0,0,0,{"$f":"'Evidence docházky'!AM70","v":0},null,{"$f":"'Evidence docházky'!AL70","v":0},{"$f":"'Evidence docházky'!AN70","v":0},{"$f":"'Personální údaje'!N6","v":0},{"$f":"'Personální údaje'!L6","v":0}]
[null,{"$f":"'Personální údaje'!F7","v":5},{"$f":"'Evidence docházky'!B71","v":0},{"$f":"'Personální údaje'!B7","v":0},{"$f":"'Evidence docházky'!AH71","v":0},null,null,{"$f":"'Evidence docházky'!AI71","v":0},0,0,0,{"$f":"'Evidence docházky'!AM71","v":0},null,{"$f":"'Evidence docházky'!AL71","v":0},{"$f":"'Evidence docházky'!AN71","v":0},{"$f":"'Personální údaje'!N7","v":0},{"$f":"'Personální údaje'!L7","v":0}]
[]
[null,"Září"]
[null,"Osobní číslo zaměstnance","Jméno","Středisko","Odpracováno hod.","Tarifní mzda","Prům. hod. výdělek","so+ne (hod)","Příplatek SO+ NE","Noční (hod)","Noční příplatek","Odměna","Řádná dovolená","Náhrada za svátek","Stravné","Sleva-poplatník","počet dětí"]
[null,{"$f":"'Personální údaje'!F3","v":1},{"$f":"'Evidence docházky'!B76","v":0},{"$f":"'Personální údaje'!B3","v":0},{"$f":"'Evidence docházky'!AG76","v":0},null,null,{"$f":"'Evidence docházky'!AH76","v":0},{"$f":"G69/100*25","v":0},{"$f":"'Evidence docházky'!AI76","v":0},{"$f":"G69/100*20","v":0},{"$f":"'Evidence docházky'!AL76","v":0},null,{"$f":"'Evidence docházky'!AK76","v":0},{"$f":"'Evidence docházky'!AM76","v":0},{"$f":"'Personální údaje'!N3","v":0},{"$f":"'Personální údaje'!L3","v":0}]
[null,{"$f":"'Personální údaje'!F4","v":2},{"$f":"'Evidence docházky'!B77","v":0},{"$f":"'Personální údaje'!B4","v":0},{"$f":"'Evidence docházky'!AG77","v":0},null,null,{"$f":"'Evidence docházky'!AH77","v":0},{"$f":"G70/100*25","v":0},0,{"$f":"G70/100*20","v":0},{"$f":"'Evidence docházky'!AL77","v":0},null,{"$f":"'Evidence docházky'!AK77","v":0},{"$f":"'Evidence docházky'!AM77","v":0},{"$f":"'Personální údaje'!N4","v":0},{"$f":"'Personální údaje'!L4","v":0}]
[null,{"$f":"'Personální údaje'!F5","v":3},{"$f":"'Evidence docházky'!B78","v":0},{"$f":"'Personální údaje'!B5","v":0},{"$f":"'Evidence docházky'!AG78","v":0},null,null,{"$f":"'Evidence docházky'!AH78","v":0},0,{"$f":"'Evidence docházky'!AI78","v":0},0,{"$f":"'Evidence docházky'!AL78","v":0},null,{"$f":"'Evidence docházky'!AK78","v":0},{"$f":"'Evidence docházky'!AM78","v":0},{"$f":"'Personální údaje'!N5","v":0},{"$f":"'Personální údaje'!L5","v":0}]
[null,{"$f":"'Personální údaje'!F6","v":4},{"$f":"'Evidence docházky'!B79","v":0},{"$f":"'Personální údaje'!B6","v":0},{"$f":"'Evidence docházky'!AG79","v":0},null,null,{"$f":"'Evidence docházky'!AH79","v":0},0,0,0,{"$f":"'Evidence docházky'!AL79","v":0},null,{"$f":"'Evidence docházky'!AK79","v":0},{"$f":"'Evidence docházky'!AM79","v":0},{"$f":"'Personální údaje'!N6","v":0},{"$f":"'Personální údaje'!L6","v":0}]
[null,{"$f":"'Personální údaje'!F7","v":5},{"$f":"'Evidence docházky'!B80","v":0},{"$f":"'Personální údaje'!B7","v":0},{"$f":"'Evidence docházky'!AG80","v":0},null,null,{"$f":"'Evidence docházky'!AH80","v":0},0,0,{"$f":"G73/100*20","v":0},{"$f":"'Evidence docházky'!AL80","v":0},null,{"$f":"'Evidence docházky'!AK80","v":0},{"$f":"'Evidence docházky'!AM80","v":0},{"$f":"'Personální údaje'!N7","v":0},{"$f":"'Personální údaje'!L7","v":0}]
[]
[null,"Říjen"]
[null,"Osobní číslo zaměstnance","Jméno","Středisko","Odpracováno hod.","Tarifní mzda","Prům. hod. výdělek","so+ne (hod)","Příplatek SO+ NE","Noční (hod)","Noční příplatek","Odměna","Řádná dovolená","Náhrada za svátek","Stravné","Sleva-poplatník","počet dětí"]
[null,{"$f":"'Personální údaje'!F3","v":1},{"$f":"'Evidence docházky'!B85","v":0},{"$f":"'Personální údaje'!B3","v":0},{"$f":"'Evidence docházky'!AG85","v":0},null,null,{"$f":"'Evidence docházky'!AH85","v":0},{"$f":"G77/100*25","v":0},{"$f":"'Evidence docházky'!AI85","v":0},{"$f":"G77/100*20","v":0},{"$f":"'Evidence docházky'!AL85","v":0},null,{"$f":"'Evidence docházky'!AK85","v":0},{"$f":"'Evidence docházky'!AM85","v":0},{"$f":"'Personální údaje'!N3","v":0},{"$f":"'Personální údaje'!L3","v":0}]
[null,{"$f":"'Personální údaje'!F4","v":2},{"$f":"'Evidence docházky'!B86","v":0},{"$f":"'Personální údaje'!B4","v":0},{"$f":"'Evidence docházky'!AG86","v":0},null,null,{"$f":"'Evidence docházky'!AH86","v":0},{"$f":"G78/100*25","v":0},0,{"$f":"G78/100*20","v":0},{"$f":"'Evidence docházky'!AL86","v":0},null,{"$f":"'Evidence docházky'!AK86","v":0},{"$f":"'Evidence docházky'!AM86","v":0},{"$f":"'Personální údaje'!N4","v":0},{"$f":"'Personální údaje'!L4","v":0}]
[null,{"$f":"'Personální údaje'!F5","v":3},{"$f":"'Evidence docházky'!B87","v":0},{"$f":"'Personální údaje'!B5","v":0},{"$f":"'Evidence docházky'!AG87","v":0},null,null,{"$f":"'Evidence docházky'!AH87","v":0},0,{"$f":"'Evidence docházky'!AI87","v":0},0,{"$f":"'Evidence docházky'!AL87","v":0},null,{"$f":"'Evidence docházky'!AK87","v":0},{"$f":"'Evidence docházky'!AM87","v":0},{"$f":"'Personální údaje'!N5","v":0},{"$f":"'Personální údaje'!L5","v":0}]
[null,{"$f":"'Personální údaje'!F6","v":4},{"$f":"'Evidence docházky'!B88","v":0},{"$f":"'Personální údaje'!B6","v":0},{"$f":"'Evidence docházky'!AG88","v":0},null,null,{"$f":"'Evidence docházky'!AH88","v":0},0,0,0,{"$f":"'Evidence docházky'!AL88","v":0},null,{"$f":"'Evidence docházky'!AK88","v":0},{"$f":"'Evidence docházky'!AM88","v":0},{"$f":"'Personální údaje'!N6","v":0},{"$f":"'Personální údaje'!L6","v":0}]
[null,{"$f":"'Personální údaje'!F7","v":5},{"$f":"'Evidence docházky'!B89","v":0},{"$f":"'Personální údaje'!B7","v":0},{"$f":"'Evidence docházky'!AG89","v":0},null,null,{"$f":"'Evidence docházky'!AH89","v":0},0,0,0,{"$f":"'Evidence docházky'!AL89","v":0},null,{"$f":"'Evidence docházky'!AK89","v":0},{"$f":"'Evidence docházky'!AM89","v":0},{"$f":"'Personální údaje'!N7","v":0},{"$f":"'Personální údaje'!L7","v":0}]
[]
[null,"Listopad"]
[null,"Osobní číslo zaměstnance","Jméno","Středisko","Odpracováno hod.","Tarifní mzda","Prům. hod. výdělek","so+ne (hod)","Příplatek SO+ NE","Noční (hod)","Noční příplatek","Odměna","Řádná dovolená","Náhrada za svátek","Stravné","Sleva-poplatník","počet dětí"]
[null,{"$f":"'Personální údaje'!F3","v":1},{"$f":"'Evidence docházky'!B94","v":0},{"$f":"'Personální údaje'!B3","v":0},{"$f":"'Evidence docházky'!AG94","v":0},null,null,{"$f":"'Evidence docházky'!AH94","v":0},{"$f":"G85/100*25","v":0},{"$f":"'Evidence docházky'!AI94","v":0},{"$f":"G85/100*20","v":0},{"$f":"'Evidence docházky'!AL94","v":0},null,{"$f":"'Evidence docházky'!AK94","v":0},{"$f":"'Evidence docházky'!AM94","v":0},{"$f":"'Personální údaje'!N3","v":0},{"$f":"'Personální údaje'!L3","v":0}]
[null,{"$f":"'Personální údaje'!F4","v":2},{"$f":"'Evidence docházky'!B95","v":0},{"$f":"'Personální údaje'!B4","v":0},{"$f":"'Evidence docházky'!AG95","v":0},null,null,{"$f":"'Evidence docházky'!AH95","v":0},{"$f":"G86/100*25","v":0},0,{"$f":"G86/100*20","v":0},{"$f":"'Evidence docházky'!AL95","v":0},null,{"$f":"'Evidence docházky'!AK95","v":0},{"$f":"'Evidence docházky'!AM95","v":0},{"$f":"'Personální údaje'!N4","v":0},{"$f":"'Personální údaje'!L4","v":0}]
[null,{"$f":"'Personální údaje'!F5","v":3},{"$f":"'Evidence docházky'!B96","v":0},{"$f":"'Personální údaje'!B5","v":0},{"$f":"'Evidence docházky'!AG96","v":0},null,null,{"$f":"'Evidence docházky'!AH96","v":0},0,{"$f":"'Evidence docházky'!AI96","v":0},0,{"$f":"'Evidence docházky'!AL96","v":0},null,{"$f":"'Evidence docházky'!AK96","v":0},{"$f":"'Evidence docházky'!AM96","v":0},{"$f":"'Personální údaje'!N5","v":0},{"$f":"'Personální údaje'!L5","v":0}]
[null,{"$f":"'Personální údaje'!F6","v":4},{"$f":"'Evidence docházky'!B97","v":0},{"$f":"'Personální údaje'!B6","v":0},{"$f":"'Evidence docházky'!AG97","v":0},null,null,{"$f":"'Evidence docházky'!AH97","v":0},0,0,0,{"$f":"'Evidence docházky'!AL97","v":0},null,{"$f":"'Evidence docházky'!AK97","v":0},{"$f":"'Evidence docházky'!AM97","v":0},{"$f":"'Personální údaje'!N6","v":0},{"$f":"'Personální údaje'!L6","v":0}]
[null,{"$f":"'Personální údaje'!F7","v":5},{"$f":"'Evidence docházky'!B98","v":0},{"$f":"'Personální údaje'!B7","v":0},{"$f":"'Evidence docházky'!AG98","v":0},null,null,{"$f":"'Evidence docházky'!AH98","v":0},0,0,0,{"$f":"'Evidence docházky'!AL98","v":0},null,{"$f":"'Evidence docházky'!AK98","v":0},{"$f":"'Evidence docházky'!AM98","v":0},{"$f":"'Personální údaje'!N7","v":0},{"$f":"'Personální údaje'!L7","v":0}]
[]
[null,"Prosinec"]
[null,"Osobní číslo zaměstnance","Jméno","Středisko","Odpracováno hod.","Tarifní mzda","Prům. hod. výdělek","so+ne (hod)","Příplatek SO+ NE","Noční (hod)","Noční příplatek","Odměna","Řádná dovolená","Náhrada za svátek","Stravné","Sleva-poplatník","počet dětí"]
[null,{"$f":"'Personální údaje'!F3","v":1},{"$f":"'Evidence docházky'!B103","v":0},{"$f":"'Personální údaje'!B3","v":0},{"$f":"'Evidence docházky'!AH103","v":0},null,null,{"$f":"'Evidence docházky'!AI103","v":0},{"$f":"G93/100*25","v":0},{"$f":"'Evidence docházky'!AJ103","v":0},{"$f":"G93/100*20","v":0},{"$f":"'Evidence docházky'!AM103","v":0},null,{"$f":"'Evidence docházky'!AL103","v":0},{"$f":"'Evidence docházky'!AN103","v":0},{"$f":"'Personální údaje'!N3","v":0},{"$f":"'Personální údaje'!L3","v":0}]
[null,{"$f":"'Personální údaje'!F4","v":2},{"$f":"'Evidence docházky'!B104","v":0},{"$f":"'Personální údaje'!B4","v":0},{"$f":"'Evidence docházky'!AH104","v":0},null,null,{"$f":"'Evidence docházky'!AI104","v":0},{"$f":"G94/100*25","v":0},0,{"$f":"G94/100*20","v":0},{"$f":"'Evidence docházky'!AM104","v":0},null,{"$f":"'Evidence docházky'!AL104","v":0},{"$f":"'Evidence docházky'!AN104","v":0},{"$f":"'Personální údaje'!N4","v":0},{"$f":"'Personální údaje'!L4","v":0}]
[null,{"$f":"'Personální údaje'!F5","v":3},{"$f":"'Evidence docházky'!B105","v":0},{"$f":"'Personální údaje'!B5","v":0},{"$f":"'Evidence docházky'!AH105","v":0},null,null,{"$f":"'Evidence docházky'!AI105","v":0},0,{"$f":"'Evidence docházky'!AJ105","v":0},0,{"$f":"'Evidence docházky'!AM105","v":0},null,{"$f":"'Evidence docházky'!AL105","v":0},{"$f":"'Evidence docházky'!AN105","v":0},{"$f":"'Personální údaje'!N5","v":0},{"$f":"'Personální údaje'!L5","v":0}]
[null,{"$f":"'Personální údaje'!F6","v":4},{"$f":"'Evidence docházky'!B106","v":0},{"$f":"'Personální údaje'!B6","v":0},{"$f":"'Evidence docházky'!AH106","v":0},null,null,{"$f":"'Evidence docházky'!AI106","v":0},0,0,0,{"$f":"'Evidence docházky'!AM106","v":0},null,{"$f":"'Evidence docházky'!AL106","v":0},{"$f":"'Evidence docházky'!AN106","v":0},{"$f":"'Personální údaje'!N6","v":0},{"$f":"'Personální údaje'!L6","v":0}]
[null,{"$f":"'Personální údaje'!F7","v":5},{"$f":"'Evidence docházky'!B107","v":0},{"$f":"'Personální údaje'!B7","v":0},{"$f":"'Evidence docházky'!AH107","v":0},null,null,{"$f":"'Evidence docházky'!AI107","v":0},0,0,0,{"$f":"'Evidence docházky'!AM107","v":0},null,{"$f":"'Evidence docházky'!AL107","v":0},{"$f":"'Evidence docházky'!AN107","v":0},{"$f":"'Personální údaje'!N7","v":0},{"$f":"'Personální údaje'!L7","v":0}]

{"sheet":"Leden","index":3,"n_rows":29,"n_cols":12,"rows_kept":29,"cut":false,"hidden":false,"merged":[]}
[]
[]
[null,"Leden"]
[]
[null,"Osobní číslo",1]
[]
[null,"Jméno",{"$f":"INDEX('Tabulky mzdy'!C5:C9,MATCH(C5,'Tabulky mzdy'!B5:B9,0),1)","v":0}]
[]
[null,"Středisko",{"$f":"INDEX('Tabulky mzdy'!D5:D9,MATCH(C5,'Tabulky mzdy'!B5:B9,0),1)","v":0}]
[]
[]
[]
[]
[null,"Prac.doba","odpracováno (hod.)","odpracováno so+ne (hod)","odpracováno noční (hod)",null,null,"Tarifní mzda",{"$f":"INDEX('Tabulky mzdy'!F5:F9,MATCH(C5,'Tabulky mzdy'!B5:B9,0),1)","v":0}]
[null,null,{"$f":"INDEX('Tabulky mzdy'!E5:E9,MATCH(C5,'Tabulky mzdy'!B5:B9,0),1)","v":0},{"$f":"INDEX('Tabulky mzdy'!H5:H9,MATCH(C5,'Tabulky mzdy'!B5:B9,0),1)","v":0},{"$f":"INDEX('Tabulky mzdy'!J5:J9,MATCH(C5,'Tabulky mzdy'!B5:B9,0),1)","v":0}]
[null,null,null,null,null,null,null,"Prům. hod. výdělek",{"$f":"INDEX('Tabulky mzdy'!G5:G14,MATCH(C5,'Tabulky mzdy'!B5:B14,0),1)","v":0}]
[]
[]
[null,"Složky mzdy","Hodiny","Kč",null,"Srážky","Kč",null,"Přehled","Kč"]
[null,"Časová mzda",{"$f":"C15","v":0},{"$f":"C20*I14","v":0},null,"Sociální 6,5 %",{"$f":"socpoj(D29)","v":0},null,"Sociální pojištění 25 %",{"$f":"socpoj25(D29)","v":0},"Počet dětí",{"$f":"INDEX('Tabulky mzdy'!Q5:Q9,MATCH(C5,'Tabulky mzdy'!B5:B9,0),1)","v":0}]
[null,null,null,null,null,"Zdravotní 4,5 %",{"$f":"zdrav(D29)","v":0},null,"Zdravotní pojištění 9 %",{"$f":"zdravpoj9(D29)","v":0},"Daňové zvýhodnění na dítě",{"$f":"IF(L20=1,1117,IF(L20=2,2534,IF(L20>2,4251,IF(L20=0,0))))","v":0}]
[null,"Příplatek SO+NE  ",{"$f":"INDEX('Tabulky mzdy'!I5:I14,MATCH(C5,'Tabulky mzdy'!B5:B14,0),1)","v":0},{"$f":"C22*D15","v":0},null,"Daň zálohová",{"$f":"J26","v":0},null,"Dílčí základ daně",{"$f":"D29+J20+J21","v":0}]
[null,"Noční příplatek  ",{"$f":"INDEX('Tabulky mzdy'!K5:K9,MATCH(C5,'Tabulky mzdy'!B5:B9,0),1)","v":0},{"$f":"C23*E15","v":0},null,"Stravné",{"$f":"INDEX('Tabulky mzdy'!O5:O9,MATCH(C5,'Tabulky mzdy'!B5:B9,0),1)","v":0},null,"Dílčí základ daně zaokr.",{"$f":"CEILING(J22,100)","v":0}]
[null,null,null,null,null,null,null,null,"Daň před slevou",{"$f":"J23*0.15","v":0}]
[null,"Odměna  ",{"$f":"INDEX('Tabulky mzdy'!L5:L9,MATCH(C5,'Tabulky mzdy'!B5:B9,0),1)","v":0},{"$f":"C25","v":0},null,null,null,null,"Sleva na dani",{"$f":"INDEX('Tabulky mzdy'!P5:P9,MATCH(C5,'Tabulky mzdy'!B5:B9,0),1)","v":0}]
[null,"Řádná dovolená  ",{"$f":"INDEX('Tabulky mzdy'!M5:M9,MATCH(C5,'Tabulky mzdy'!B5:B9,0),1)","v":0},{"$f":"C26*I16","v":0},null,null,null,null,"Dań po slevách",{"$f":"J24-J25-L21","v":0}]
[null,"Náhrada za svátek",{"$f":"INDEX('Tabulky mzdy'!N5:N9,MATCH(C5,'Tabulky mzdy'!B5:B9,0),1)","v":0},{"$f":"C27*I16","v":0}]
[]
[null,null,"Hrubá mzda",{"$f":"SUM(D20+D21+D22+D23+D24+D25+D26+D27)","v":0},null,null,null,null,"MZDA K VÝPLATĚ",{"$f":"D29-G20-G21-G22-(-G23)","v":0}]

{"sheet":"Únor","index":4,"n_rows":29,"n_cols":12,"rows_kept":29,"cut":false,"hidden":false,"merged":[]}
[]
[]
[null,"Únor"]
[]
[null,"Osobní číslo",1]
[]
[null,"Jméno",{"$f":"INDEX('Tabulky mzdy'!C13:C17,MATCH(C5,'Tabulky mzdy'!B13:B17,0),1)","v":0}]
[]
[null,"Středisko",{"$f":"INDEX('Tabulky mzdy'!D13:D17,MATCH(C5,'Tabulky mzdy'!B13:B17,0),1)","v":0}]
[]
[]
[]
[]
[null,"Prac.doba","odpracováno (hod.)","odpracováno so+ne (hod)","odpracováno noční (hod)",null,null,"Tarifní mzda",{"$f":"INDEX('Tabulky mzdy'!F13:F17,MATCH(C5,'Tabulky mzdy'!B13:B17,0),1)","v":0}]
[null,null,{"$f":"INDEX('Tabulky mzdy'!E13:E17,MATCH(C5,'Tabulky mzdy'!B13:B17,0),1)","v":0},{"$f":"INDEX('Tabulky mzdy'!H13:H17,MATCH(C5,'Tabulky mzdy'!B13:B17,0),1)","v":0},{"$f":"INDEX('Tabulky mzdy'!J13:J17,MATCH(C5,'Tabulky mzdy'!B13:B17,0),1)","v":0}]
[null,null,null,null,null,null,null,"Prům. hod. výdělek",{"$f":"INDEX('Tabulky mzdy'!G13:G17,MATCH(C5,'Tabulky mzdy'!B13:B17,0),1)","v":0}]
[]
[]
[null,"Složky mzdy","Hodiny","Kč",null,"Srážky","Kč",null,"Přehled","Kč"]
[null,"Časová mzda",{"$f":"C15","v":0},{"$f":"C20*I14","v":0},null,"Sociální 6,5 %",{"$f":"socpoj(D29)","v":0},null,"Sociální pojištění 25 %",{"$f":"socpoj25(D29)","v":0},"Počet dětí",{"$f":"INDEX('Tabulky mzdy'!Q13:Q17,MATCH(C5,'Tabulky mzdy'!B13:B17,0),1)","v":0}]
[null,null,null,{"$f":"nadtarifnimzda(C21)","v":0},null,"Zdravotní 4,5 %",{"$f":"zdrav(D29)","v":0},null,"Zdravotní pojištění 9 %",{"$f":"zdravpoj9(D29)","v":0},"Daňové zvýhodnění na dítě",{"$f":"IF(L20=1,1117,IF(L20=2,2534,IF(L20>2,4251,IF(L20=0,0))))","v":0}]
[null,"Příplatek SO+NE  ",{"$f":"INDEX('Tabulky mzdy'!I5:I14,MATCH(C5,'Tabulky mzdy'!B5:B14,0),1)","v":0},{"$f":"C22*D15","v":0},null,"Daň zálohová",{"$f":"J26","v":0},null,"Dílčí základ daně",{"$f":"D29+J20+J21","v":0}]
[null,"Noční příplatek  ",{"$f":"INDEX('Tabulky mzdy'!K13:K17,MATCH(C5,'Tabulky mzdy'!B13:B17,0),1)","v":0},{"$f":"C23*E15","v":0},null,"Stravné",{"$f":"INDEX('Tabulky mzdy'!O13:O17,MATCH(C5,'Tabulky mzdy'!B13:B17,0),1)","v":0},null,"Dílčí základ daně zaokr.",{"$f":"CEILING(J22,100)","v":0}]
[null,null,null,null,null,null,null,null,"Daň před slevou",{"$f":"J23*0.15","v":0}]
[null,"Odměna  ",{"$f":"INDEX('Tabulky mzdy'!L5:L14,MATCH(C5,'Tabulky mzdy'!B5:B14,0),1)","v":0},{"$f":"C25","v":0},null,null,null,null,"Sleva na dani",{"$f":"INDEX('Tabulky mzdy'!P13:P17,MATCH(C5,'Tabulky mzdy'!B13:B17,0),1)","v":0}]
[null,"Řádná dovolená  ",{"$f":"INDEX('Tabulky mzdy'!M13:M17,MATCH(C5,'Tabulky mzdy'!B13:B17,0),1)","v":0},{"$f":"C26*I16","v":0},null,null,null,null,"Dań po slevách",{"$f":"J24-J25-L21","v":0}]
[null,"Náhrada za svátek",{"$f":"INDEX('Tabulky mzdy'!N13:N17,MATCH(C5,'Tabulky mzdy'!B13:B17,0),1)","v":0},{"$f":"C27*I16","v":0}]
[]
[null,null,"Hrubá mzda",{"$f":"SUM(D20+D21+D22+D23+D24+D25+D26+D27)","v":0},null,null,null,null,"MZDA K VÝPLATĚ",{"$f":"D29-G20-G21-G22-(-G23)","v":0}]

{"sheet":"Březen","index":5,"n_rows":29,"n_cols":12,"rows_kept":29,"cut":false,"hidden":false,"merged":[]}
[]
[]
[null,"Březen"]
[]
[null,"Osobní číslo",1]
[]
[null,"Jméno",{"$f":"INDEX('Tabulky mzdy'!C21:C25,MATCH(C5,'Tabulky mzdy'!B21:B25,0),1)","v":0}]
[]
[null,"Středisko",{"$f":"INDEX('Tabulky mzdy'!D21:D25,MATCH(C5,'Tabulky mzdy'!B21:B25,0),1)","v":0}]
[]
[]
[]
[]
[null,"Prac.doba","odpracováno (hod.)","odpracováno so+ne (hod)","odpracováno noční (hod)",null,null,"Tarifní mzda",{"$f":"INDEX('Tabulky mzdy'!F21:F25,MATCH(C5,'Tabulky mzdy'!B21:B25,0),1)","v":0}]
[null,null,{"$f":"INDEX('Tabulky mzdy'!E21:E25,MATCH(C5,'Tabulky mzdy'!B21:B25,0),1)","v":0},{"$f":"INDEX('Tabulky mzdy'!H21:H25,MATCH(C5,'Tabulky mzdy'!B21:B25,0),1)","v":0},{"$f":"INDEX('Tabulky mzdy'!J21:J25,MATCH(C5,'Tabulky mzdy'!B21:B25,0),1)","v":0}]
[null,null,null,null,null,null,null,"Průměr.dovolená",{"$f":"INDEX('Tabulky mzdy'!G21:G25,MATCH(C5,'Tabulky mzdy'!B21:B25,0),1)","v":0}]
[]
[]
[null,"Složky mzdy","Hodiny","Kč",null,"Srážky","Kč",null,"Přehled","Kč"]
[null,"Časová mzda",{"$f":"C15","v":0},{"$f":"C20*I14","v":0},null,"Sociální 6,5 %",{"$f":"socpoj(D29)","v":0},null,"Sociální pojištění 25 %",{"$f":"socpoj25(D29)","v":0},"Počet dětí",{"$f":"INDEX('Tabulky mzdy'!Q21:Q25,MATCH(C5,'Tabulky mzdy'!B21:B25,0),1)","v":0}]
[null,null,null,null,null,"Zdravotní 4,5 %",{"$f":"zdrav(D29)","v":0},null,"Zdravotní pojištění 9 %",{"$f":"zdravpoj9(D29)","v":0},"Daňové zvýhodnění na dítě",{"$f":"IF(L20=1,1117,IF(L20=2,2534,IF(L20>2,4251,IF(L20=0,0))))","v":0}]
[null,"Příplatek SO+NE  ",{"$f":"INDEX('Tabulky mzdy'!I21:I25,MATCH(C5,'Tabulky mzdy'!B21:B25,0),1)","v":0},{"$f":"C22*D15","v":0},null,"Daň zálohová",{"$f":"J26","v":0},null,"Dílčí základ daně",{"$f":"D29+J20+J21","v":0}]
[null,"Noční příplatek  ",{"$f":"INDEX('Tabulky mzdy'!K21:K25,MATCH(C5,'Tabulky mzdy'!B21:B25,0),1)","v":0},{"$f":"C23*E15","v":0},null,"Stravné",{"$f":"INDEX('Tabulky mzdy'!O21:O25,MATCH(C5,'Tabulky mzdy'!B21:B25,0),1)","v":0},null,"Dílčí základ daně zaokr.",{"$f":"CEILING(J22,100)","v":0}]
[null,null,null,null,null,null,null,null,"Daň před slevou",{"$f":"J23*0.15","v":0}]
[null,"Odměna  ",{"$f":"INDEX('Tabulky mzdy'!L21:L25,MATCH(C5,'Tabulky mzdy'!B21:B25,0),1)","v":0},{"$f":"C25","v":0},null,null,null,null,"Sleva na dani",{"$f":"INDEX('Tabulky mzdy'!P21:P25,MATCH(C5,'Tabulky mzdy'!B21:B25,0),1)","v":0}]
[null,"Řádná dovolená  ",{"$f":"INDEX('Tabulky mzdy'!M21:M25,MATCH(C5,'Tabulky mzdy'!B21:B25,0),1)","v":0},{"$f":"C26*I16","v":0},null,null,null,null,"Dań po slevách",{"$f":"J24-J25-L21","v":0}]
[null,"Náhrada za svátek",{"$f":"INDEX('Tabulky mzdy'!N21:N25,MATCH(C5,'Tabulky mzdy'!B21:B25,0),1)","v":0},{"$f":"C27*I16","v":0}]
[]
[null,null,"Hrubá mzda",{"$f":"SUM(D20+D21+D22+D23+D24+D25+D26+D27)","v":0},null,null,null,null,"MZDA K VÝPLATĚ",{"$f":"D29-G20-G21-G22-(-G23)","v":0}]

{"sheet":"Duben","index":6,"n_rows":29,"n_cols":12,"rows_kept":29,"cut":false,"hidden":false,"merged":[]}
[]
[]
[null,"Duben"]
[]
[null,"Osobní číslo",1]
[]
[null,"Jméno",{"$f":"INDEX('Tabulky mzdy'!C29:C33,MATCH(C5,'Tabulky mzdy'!B29:B33,0),1)","v":0}]
[]
[null,"Středisko",{"$f":"INDEX('Tabulky mzdy'!D29:D33,MATCH(C5,'Tabulky mzdy'!B29:B33,0),1)","v":0}]
[]
[]
[]
[]
[null,"Prac.doba","odpracováno (hod.)","odpracováno so+ne (hod)","odpracováno noční (hod)",null,null,"Tarifní mzda",{"$f":"INDEX('Tabulky mzdy'!F29:F33,MATCH(C5,'Tabulky mzdy'!B29:B33,0),1)","v":0}]
[null,null,{"$f":"INDEX('Tabulky mzdy'!E29:E33,MATCH(C5,'Tabulky mzdy'!B29:B33,0),1)","v":0},{"$f":"INDEX('Tabulky mzdy'!H29:H33,MATCH(C5,'Tabulky mzdy'!B29:B33,0),1)","v":0},{"$f":"INDEX('Tabulky mzdy'!J29:J33,MATCH(C5,'Tabulky mzdy'!B29:B33,0),1)","v":0}]
[null,null,null,null,null,null,null,"Prům. hod. výdělek",{"$f":"INDEX('Tabulky mzdy'!G29:G33,MATCH(C5,'Tabulky mzdy'!B29:B33,0),1)","v":0}]
[]
[]
[null,"Složky mzdy","Hodiny","Kč",null,"Srážky","Kč",null,"Přehled","Kč"]
[null,"Časová mzda",{"$f":"C15","v":0},{"$f":"C20*I14","v":0},null,"Sociální 6,5 %",{"$f":"socpoj(D29)","v":0},null,"Sociální pojištění 25 %",{"$f":"socpoj25(D29)","v":0},"Počet dětí",{"$f":"INDEX('Tabulky mzdy'!Q29:Q33,MATCH(C5,'Tabulky mzdy'!B29:B33,0),1)","v":0}]
[null,null,null,null,null,"Zdravotní 4,5 %",{"$f":"zdrav(D29)","v":0},null,"Zdravotní pojištění 9 %",{"$f":"zdravpoj9(D29)","v":0},"Daňové zvýhodnění na dítě",{"$f":"IF(L20=1,1117,IF(L20=2,2534,IF(L20>2,4251,IF(L20=0,0))))","v":0}]
[null,"Příplatek SO+NE  ",{"$f":"INDEX('Tabulky mzdy'!I29:I33,MATCH(C5,'Tabulky mzdy'!B29:B33,0),1)","v":0},{"$f":"C22*D15","v":0},null,"Daň zálohová",{"$f":"J26","v":0},null,"Dílčí základ daně",{"$f":"D29+J20+J21","v":0}]
[null,"Noční příplatek  ",{"$f":"INDEX('Tabulky mzdy'!K29:K33,MATCH(C5,'Tabulky mzdy'!B29:B33,0),1)","v":0},{"$f":"C23*E15","v":0},null,"Stravné",{"$f":"INDEX('Tabulky mzdy'!O29:O33,MATCH(C5,'Tabulky mzdy'!B29:B33,0),1)","v":0},null,"Dílčí základ daně zaokr.",{"$f":"CEILING(J22,100)","v":0}]
[null,null,null,null,null,null,null,null,"Daň před slevou",{"$f":"J23*0.15","v":0}]
[null,"Odměna  ",{"$f":"INDEX('Tabulky mzdy'!L29:L33,MATCH(C5,'Tabulky mzdy'!B29:B33,0),1)","v":0},{"$f":"C25","v":0},null,null,null,null,"Sleva na dani",{"$f":"INDEX('Tabulky mzdy'!P29:P33,MATCH(C5,'Tabulky mzdy'!B29:B33,0),1)","v":0}]
[null,"Řádná dovolená  ",{"$f":"INDEX('Tabulky mzdy'!M29:M33,MATCH(C5,'Tabulky mzdy'!B29:B33,0),1)","v":0},{"$f":"C26*I16","v":0},null,null,null,null,"Dań po slevách",{"$f":"J24-J25-L21","v":0}]
[null,"Náhrada za svátek",{"$f":"INDEX('Tabulky mzdy'!N29:N33,MATCH(C5,'Tabulky mzdy'!B29:B33,0),1)","v":0},{"$f":"C27*I16","v":0}]
[]
[null,null,"Hrubá mzda",{"$f":"SUM(D20+D21+D22+D23+D24+D25+D26+D27)","v":0},null,null,null,null,"MZDA K VÝPLATĚ",{"$f":"D29-G20-G21-G22-(-G23)","v":0}]

{"sheet":"Květen","index":7,"n_rows":29,"n_cols":12,"rows_kept":29,"cut":false,"hidden":false,"merged":[]}
[]
[]
[null,"Květen"]
[]
[null,"Osobní číslo",1]
[]
[null,"Jméno",{"$f":"INDEX('Tabulky mzdy'!C37:C41,MATCH(C5,'Tabulky mzdy'!B37:B41,0),1)","v":0}]
[]
[null,"Středisko",{"$f":"INDEX('Tabulky mzdy'!D37:D41,MATCH(C5,'Tabulky mzdy'!B37:B41,0),1)","v":0}]
[]
[]
[]
[]
[null,"Prac.doba","odpracováno (hod.)","odpracováno so+ne (hod)","odpracováno noční (hod)",null,null,"Tarifní mzda",{"$f":"INDEX('Tabulky mzdy'!F37:F41,MATCH(C5,'Tabulky mzdy'!B37:B41,0),1)","v":0}]
[null,null,{"$f":"INDEX('Tabulky mzdy'!E37:E41,MATCH(C5,'Tabulky mzdy'!B37:B41,0),1)","v":0},{"$f":"INDEX('Tabulky mzdy'!H37:H41,MATCH(C5,'Tabulky mzdy'!B37:B41,0),1)","v":0},{"$f":"INDEX('Tabulky mzdy'!J37:J41,MATCH(C5,'Tabulky mzdy'!B37:B41,0),1)","v":0}]
[null,null,null,null,null,null,null,"Prům. hod. výdělek",{"$f":"INDEX('Tabulky mzdy'!G37:G41,MATCH(C5,'Tabulky mzdy'!B37:B41,0),1)","v":0}]
[]
[]
[null,"Složky mzdy","Hodiny","Kč",null,"Srážky","Kč",null,"Přehled","Kč"]
[null,"Časová mzda",{"$f":"C15","v":0},{"$f":"C20*I14","v":0},null," ",{"$f":"socpoj(D29)","v":0},null,"Sociální pojištění 25 %",{"$f":"socpoj25(D29)","v":0},"Počet dětí",{"$f":"INDEX('Tabulky mzdy'!Q37:Q41,MATCH(C5,'Tabulky mzdy'!B37:B41,0),1)","v":0}]
[null,null,null,null,null,"Zdravotní 4,5 %",{"$f":"zdrav(D29)","v":0},null,"Zdravotní pojištění 9 %",{"$f":"zdravpoj9(D29)","v":0},"Daňové zvýhodnění na dítě",{"$f":"IF(L20=1,1117,IF(L20=2,2534,IF(L20>2,4251,IF(L20=0,0))))","v":0}]
[null,"Příplatek SO+NE  ",{"$f":"INDEX('Tabulky mzdy'!I37:I41,MATCH(C5,'Tabulky mzdy'!B37:B41,0),1)","v":0},{"$f":"C22*D15","v":0},null,"Daň zálohová",{"$f":"J26","v":0},null,"Dílčí základ daně",{"$f":"D29+J20+J21","v":0}]
[null,"Noční příplatek  ",{"$f":"INDEX('Tabulky mzdy'!K37:K41,MATCH(C5,'Tabulky mzdy'!B37:B41,0),1)","v":0},{"$f":"C23*E15","v":0},null,"Stravné",{"$f":"INDEX('Tabulky mzdy'!O37:O41,MATCH(C5,'Tabulky mzdy'!B37:B41,0),1)","v":0},null,"Dílčí základ daně zaokr.",{"$f":"CEILING(J22,100)","v":0}]
[null,null,null,null,null,null,null,null,"Daň před slevou",{"$f":"J23*0.15","v":0}]
[null,"Odměna  ",{"$f":"INDEX('Tabulky mzdy'!L37:L41,MATCH(C5,'Tabulky mzdy'!B37:B41,0),1)","v":0},{"$f":"C25","v":0},null,null,null,null,"Sleva na dani",{"$f":"INDEX('Tabulky mzdy'!P37:P41,MATCH(C5,'Tabulky mzdy'!B37:B41,0),1)","v":0}]
[null,"Řádná dovolená  ",{"$f":"INDEX('Tabulky mzdy'!M37:M41,MATCH(C5,'Tabulky mzdy'!B37:B41,0),1)","v":0},{"$f":"C26*I16","v":0},null,null,null,null,"Dań po slevách",{"$f":"J24-J25-L21","v":0}]
[null,"Náhrada za svátek",{"$f":"INDEX('Tabulky mzdy'!N37:N41,MATCH(C5,'Tabulky mzdy'!B37:B41,0),1)","v":0},{"$f":"C27*I16","v":0}]
[]
[null,null,"Hrubá mzda",{"$f":"SUM(D20+D21+D22+D23+D24+D25+D26+D27)","v":0},null,null,null,null,"MZDA K VÝPLATĚ",{"$f":"D29-G20-G21-G22-(-G23)","v":0}]

{"sheet":"Červen","index":8,"n_rows":29,"n_cols":12,"rows_kept":29,"cut":false,"hidden":false,"merged":[]}
[]
[]
[null,"Červen"]
[]
[null,"Osobní číslo",1]
[]
[null,"Jméno",{"$f":"INDEX('Tabulky mzdy'!C45:C49,MATCH(C5,'Tabulky mzdy'!B45:B49,0),1)","v":0}]
[]
[null,"Středisko",{"$f":"INDEX('Tabulky mzdy'!D45:D49,MATCH(C5,'Tabulky mzdy'!B45:B49,0),1)","v":0}]
[]
[]
[]
[]
[null,"Prac.doba","odpracováno (hod.)","odpracováno so+ne (hod)","odpracováno noční (hod)",null,null,"Tarifní mzda",{"$f":"INDEX('Tabulky mzdy'!F45:F49,MATCH(C5,'Tabulky mzdy'!B45:B49,0),1)","v":0}]
[null,null,{"$f":"INDEX('Tabulky mzdy'!E45:E49,MATCH(C5,'Tabulky mzdy'!B45:B49,0),1)","v":0},{"$f":"INDEX('Tabulky mzdy'!H45:H49,MATCH(C5,'Tabulky mzdy'!B45:B49,0),1)","v":0},{"$f":"INDEX('Tabulky mzdy'!J45:J49,MATCH(C5,'Tabulky mzdy'!B45:B49,0),1)","v":0}]
[null,null,null,null,null,null,null,"Prům. hod. výdělek",{"$f":"INDEX('Tabulky mzdy'!G45:G49,MATCH(C5,'Tabulky mzdy'!B45:B49,0),1)","v":0}]
[]
[]
[null,"Složky mzdy","Hodiny","Kč",null,"Srážky","Kč",null,"Přehled","Kč"]
[null,"Časová mzda",{"$f":"C15","v":0},{"$f":"C20*I14","v":0},null,"Sociální 6,5 %",{"$f":"socpoj(D29)","v":0},null,"Sociální pojištění 25 %",{"$f":"socpoj25(D29)","v":0},"Počet dětí",{"$f":"INDEX('Tabulky mzdy'!Q45:Q49,MATCH(C5,'Tabulky mzdy'!B45:B49,0),1)","v":0}]
[null,null,null,null,null,"Zdravotní 4,5 %",{"$f":"zdrav(D29)","v":0},null,"Zdravotní pojištění 9 %",{"$f":"zdravpoj9(D29)","v":0},"Daňové zvýhodnění na dítě",{"$f":"IF(L20=1,1117,IF(L20=2,2534,IF(L20>2,4251,IF(L20=0,0))))","v":0}]
[null,"Příplatek SO+NE  ",{"$f":"INDEX('Tabulky mzdy'!I45:I49,MATCH(C5,'Tabulky mzdy'!B45:B49,0),1)","v":0},{"$f":"C22*D15","v":0},null,"Daň zálohová",{"$f":"J26","v":0},null,"Dílčí základ daně",{"$f":"D29+J20+J21","v":0}]
[null,"Noční příplatek  ",{"$f":"INDEX('Tabulky mzdy'!K45:K49,MATCH(C5,'Tabulky mzdy'!B45:B49,0),1)","v":0},{"$f":"C23*E15","v":0},null,"Stravné",{"$f":"INDEX('Tabulky mzdy'!O45:O49,MATCH(C5,'Tabulky mzdy'!B45:B49,0),1)","v":0},null,"Dílčí základ daně zaokr.",{"$f":"CEILING(J22,100)","v":0}]
[null,null,null,null,null,null,null,null,"Daň před slevou",{"$f":"J23*0.15","v":0}]
[null,"Odměna  ",{"$f":"INDEX('Tabulky mzdy'!L45:L49,MATCH(C5,'Tabulky mzdy'!B45:B49,0),1)","v":0},{"$f":"C25","v":0},null,null,null,null,"Sleva na dani",{"$f":"INDEX('Tabulky mzdy'!P45:P49,MATCH(C5,'Tabulky mzdy'!B45:B49,0),1)","v":0}]
[null,"Řádná dovolená  ",{"$f":"INDEX('Tabulky mzdy'!M45:M49,MATCH(C5,'Tabulky mzdy'!B45:B49,0),1)","v":0},{"$f":"C26*I16","v":0},null,null,null,null,"Dań po slevách",{"$f":"J24-J25-L21","v":0}]
[null,"Náhrada za svátek",{"$f":"INDEX('Tabulky mzdy'!N45:N49,MATCH(C5,'Tabulky mzdy'!B45:B49,0),1)","v":0},{"$f":"C27*I16","v":0}]
[]
[null,null,"Hrubá mzda",{"$f":"SUM(D20+D21+D22+D23+D24+D25+D26+D27)","v":0},null,null,null,null,"MZDA K VÝPLATĚ",{"$f":"D29-G20-G21-G22-(-G23)","v":0}]

{"sheet":"Červenec","index":9,"n_rows":29,"n_cols":12,"rows_kept":29,"cut":false,"hidden":false,"merged":[]}
[]
[]
[null,"Červenec"]
[]
[null,"Osobní číslo",1]
[]
[null,"Jméno",{"$f":"INDEX('Tabulky mzdy'!C53:C57,MATCH(C5,'Tabulky mzdy'!B53:B57,0),1)","v":0}]
[]
[null,"Středisko",{"$f":"INDEX('Tabulky mzdy'!D53:D57,MATCH(C5,'Tabulky mzdy'!B53:B57,0),1)","v":0}]
[]
[]
[]
[]
[null,"Prac.doba","odpracováno (hod.)","odpracováno so+ne (hod)","odpracováno noční (hod)",null,null,"Tarifní mzda",{"$f":"INDEX('Tabulky mzdy'!F53:F57,MATCH(C5,'Tabulky mzdy'!B53:B57,0),1)","v":0}]
[null,null,{"$f":"INDEX('Tabulky mzdy'!E53:E57,MATCH(C5,'Tabulky mzdy'!B53:B57,0),1)","v":0},{"$f":"INDEX('Tabulky mzdy'!H53:H57,MATCH(C5,'Tabulky mzdy'!B53:B57,0),1)","v":0},{"$f":"INDEX('Tabulky mzdy'!J53:J57,MATCH(C5,'Tabulky mzdy'!B53:B57,0),1)","v":0}]
[null,null,null,null,null,null,null,"Prům. hod. výdělek",{"$f":"INDEX('Tabulky mzdy'!G53:G57,MATCH(C5,'Tabulky mzdy'!B53:B57,0),1)","v":0}]
[]
[]
[null,"Složky mzdy","Hodiny","Kč",null,"Srážky","Kč",null,"Přehled","Kč"]
[null,"Časová mzda",{"$f":"C15","v":0},{"$f":"C20*I14","v":0},null,"Sociální 6,5 %",{"$f":"socpoj(D29)","v":0},null,"Sociální pojištění 25 %",{"$f":"socpoj25(D29)","v":0},"Počet dětí",{"$f":"INDEX('Tabulky mzdy'!Q53:Q57,MATCH(C5,'Tabulky mzdy'!B53:B57,0),1)","v":0}]
[null,null,null,null,null,"Zdravotní 4,5 %",{"$f":"zdrav(D29)","v":0},null,"Zdravotní pojištění 9 %",{"$f":"zdravpoj9(D29)","v":0},"Daňové zvýhodnění na dítě",{"$f":"IF(L20=1,1117,IF(L20=2,2534,IF(L20>2,4251,IF(L20=0,0))))","v":0}]
[null,"Příplatek SO+NE  ",{"$f":"INDEX('Tabulky mzdy'!I53:I57,MATCH(C5,'Tabulky mzdy'!B53:B57,0),1)","v":0},{"$f":"C22*D15","v":0},null,"Daň zálohová",{"$f":"J26","v":0},null,"Dílčí základ daně",{"$f":"D29+J20+J21","v":0}]
[null,"Noční příplatek  ",{"$f":"INDEX('Tabulky mzdy'!K53:K57,MATCH(C5,'Tabulky mzdy'!B53:B57,0),1)","v":0},{"$f":"C23*E15","v":0},null,"Stravné",{"$f":"INDEX('Tabulky mzdy'!O53:O57,MATCH(C5,'Tabulky mzdy'!B53:B57,0),1)","v":0},null,"Dílčí základ daně zaokr.",{"$f":"CEILING(J22,100)","v":0}]
[null,null,null,null,null,null,null,null,"Daň před slevou",{"$f":"J23*0.15","v":0}]
[null,"Odměna  ",{"$f":"INDEX('Tabulky mzdy'!L53:L57,MATCH(C5,'Tabulky mzdy'!B53:B57,0),1)","v":0},{"$f":"C25","v":0},null,null,null,null,"Sleva na dani",{"$f":"INDEX('Tabulky mzdy'!P53:P57,MATCH(C5,'Tabulky mzdy'!B53:B57,0),1)","v":0}]
[null,"Řádná dovolená  ",{"$f":"INDEX('Tabulky mzdy'!M53:M57,MATCH(C5,'Tabulky mzdy'!B53:B57,0),1)","v":0},{"$f":"C26*I16","v":0},null,null,null,null,"Dań po slevách",{"$f":"J24-J25-L21","v":0}]
[null,"Náhrada za svátek",{"$f":"INDEX('Tabulky mzdy'!N53:N57,MATCH(C5,'Tabulky mzdy'!B53:B57,0),1)","v":0},{"$f":"C27*I16","v":0}]
[]
[null,null,"Hrubá mzda",{"$f":"SUM(D20+D21+D22+D23+D24+D25+D26+D27)","v":0},null,null,null,null,"MZDA K VÝPLATĚ",{"$f":"D29-G20-G21-G22-(-G23)","v":0}]

{"sheet":"Srpen","index":10,"n_rows":29,"n_cols":12,"rows_kept":29,"cut":false,"hidden":false,"merged":[]}
[]
[]
[null,"Srpen"]
[]
[null,"Osobní číslo",1]
[]
[null,"Jméno",{"$f":"INDEX('Tabulky mzdy'!C61:C65,MATCH(C5,'Tabulky mzdy'!B61:B65,0),1)","v":0}]
[]
[null,"Středisko",{"$f":"INDEX('Tabulky mzdy'!D61:D65,MATCH(C5,'Tabulky mzdy'!B61:B65,0),1)","v":0}]
[]
[]
[]
[]
[null,"Prac.doba","odpracováno (hod.)","odpracováno so+ne (hod)","odpracováno noční (hod)",null,null,"Tarifní mzda",{"$f":"INDEX('Tabulky mzdy'!F61:F65,MATCH(C5,'Tabulky mzdy'!B61:B65,0),1)","v":0}]
[null,null,{"$f":"INDEX('Tabulky mzdy'!E61:E65,MATCH(C5,'Tabulky mzdy'!B61:B65,0),1)","v":0},{"$f":"INDEX('Tabulky mzdy'!H61:H65,MATCH(C5,'Tabulky mzdy'!B61:B65,0),1)","v":0},{"$f":"INDEX('Tabulky mzdy'!J61:J65,MATCH(C5,'Tabulky mzdy'!B61:B65,0),1)","v":0}]
[null,null,null,null,null,null,null,"Prům. hod. výdělek",{"$f":"INDEX('Tabulky mzdy'!G61:G65,MATCH(C5,'Tabulky mzdy'!B61:B65,0),1)","v":0}]
[]
[]
[null,"Složky mzdy","Hodiny","Kč",null,"Srážky","Kč",null,"Přehled","Kč"]
[null,"Časová mzda",{"$f":"C15","v":0},{"$f":"C20*I14","v":0},null,"Sociální 6,5 %",{"$f":"socpoj(D29)","v":0},null,"Sociální pojištění 25 %",{"$f":"socpoj25(D29)","v":0},"Počet dětí",{"$f":"INDEX('Tabulky mzdy'!Q61:Q65,MATCH(C5,'Tabulky mzdy'!B61:B65,0),1)","v":0}]
[null,null,null,null,null,"Zdravotní 4,5 %",{"$f":"zdrav(D29)","v":0},null,"Zdravotní pojištění 9 %",{"$f":"zdravpoj9(D29)","v":0},"Daňové zvýhodnění na dítě",{"$f":"IF(L20=1,1117,IF(L20=2,2534,IF(L20>2,4251,IF(L20=0,0))))","v":0}]
[null,"Příplatek SO+NE  ",{"$f":"INDEX('Tabulky mzdy'!I61:I65,MATCH(C5,'Tabulky mzdy'!B61:B65,0),1)","v":0},{"$f":"C22*D15","v":0},null,"Daň zálohová",{"$f":"J26","v":0},null,"Dílčí základ daně",{"$f":"D29+J20+J21","v":0}]
[null,"Noční příplatek  ",{"$f":"INDEX('Tabulky mzdy'!K61:K65,MATCH(C5,'Tabulky mzdy'!B61:B65,0),1)","v":0},{"$f":"C23*E15","v":0},null,"Stravné",{"$f":"INDEX('Tabulky mzdy'!O61:O65,MATCH(C5,'Tabulky mzdy'!B61:B65,0),1)","v":0},null,"Dílčí základ daně zaokr.",{"$f":"CEILING(J22,100)","v":0}]
[null,null,null,null,null,null,null,null,"Daň před slevou",{"$f":"J23*0.15","v":0}]
[null,"Odměna  ",{"$f":"INDEX('Tabulky mzdy'!L61:L65,MATCH(C5,'Tabulky mzdy'!B61:B65,0),1)","v":0},{"$f":"C25","v":0},null,null,null,null,"Sleva na dani",{"$f":"INDEX('Tabulky mzdy'!P61:P65,MATCH(C5,'Tabulky mzdy'!B61:B65,0),1)","v":0}]
[null,"Řádná dovolená  ",{"$f":"INDEX('Tabulky mzdy'!M61:M65,MATCH(C5,'Tabulky mzdy'!B61:B65,0),1)","v":0},{"$f":"C26*I16","v":0},null,null,null,null,"Dań po slevách",{"$f":"J24-J25-L21","v":0}]
[null,"Náhrada za svátek",{"$f":"INDEX('Tabulky mzdy'!N61:N65,MATCH(C5,'Tabulky mzdy'!B61:B65,0),1)","v":0},{"$f":"C27*I16","v":0}]
[]
[null,null,"Hrubá mzda",{"$f":"SUM(D20+D21+D22+D23+D24+D25+D26+D27)","v":0},null,null,null,null,"MZDA K VÝPLATĚ",{"$f":"D29-G20-G21-G22-(-G23)","v":0}]

{"sheet":"Září","index":11,"n_rows":29,"n_cols":12,"rows_kept":29,"cut":false,"hidden":false,"merged":[]}
[]
[]
[null,"Září"]
[]
[null,"Osobní číslo",1]
[]
[null,"Jméno",{"$f":"INDEX('Tabulky mzdy'!C69:C73,MATCH(C5,'Tabulky mzdy'!B69:B73,0),1)","v":0}]
[]
[null,"Středisko",{"$f":"INDEX('Tabulky mzdy'!D69:D73,MATCH(C5,'Tabulky mzdy'!B69:B73,0),1)","v":0}]
[]
[]
[]
[]
[null,"Prac.doba","odpracováno (hod.)","odpracováno so+ne (hod)","odpracováno noční (hod)",null,null,"Tarifní mzda",{"$f":"INDEX('Tabulky mzdy'!F69:F73,MATCH(C5,'Tabulky mzdy'!B69:B73,0),1)","v":0}]
[null,null,{"$f":"INDEX('Tabulky mzdy'!E69:E73,MATCH(C5,'Tabulky mzdy'!B69:B73,0),1)","v":0},{"$f":"INDEX('Tabulky mzdy'!H69:H73,MATCH(C5,'Tabulky mzdy'!B69:B73,0),1)","v":0},{"$f":"INDEX('Tabulky mzdy'!J69:J73,MATCH(C5,'Tabulky mzdy'!B69:B73,0),1)","v":0}]
[null,null,null,null,null,null,null,"Prům. hod. výdělek",{"$f":"INDEX('Tabulky mzdy'!G69:G73,MATCH(C5,'Tabulky mzdy'!B69:B73,0),1)","v":0}]
[]
[]
[null,"Složky mzdy","Hodiny","Kč",null,"Srážky","Kč",null,"Přehled","Kč"]
[null,"Časová mzda",{"$f":"C15","v":0},{"$f":"C20*I14","v":0},null,"Sociální 6,5 %",{"$f":"socpoj(D29)","v":0},null,"Sociální pojištění 25 %",{"$f":"socpoj25(D29)","v":0},"Počet dětí",{"$f":"INDEX('Tabulky mzdy'!Q69:Q73,MATCH(C5,'Tabulky mzdy'!B69:B73,0),1)","v":0}]
[null,null,null,null,null,"Zdravotní 4,5 %",{"$f":"zdrav(D29)","v":0},null,"Zdravotní pojištění 9 %",{"$f":"zdravpoj9(D29)","v":0},"Daňové zvýhodnění na dítě",{"$f":"IF(L20=1,1117,IF(L20=2,2534,IF(L20>2,4251,IF(L20=0,0))))","v":0}]
[null,"Příplatek SO+NE  ",{"$f":"INDEX('Tabulky mzdy'!I69:I73,MATCH(C5,'Tabulky mzdy'!B69:B73,0),1)","v":0},{"$f":"C22*D15","v":0},null,"Daň zálohová",{"$f":"J26","v":0},null,"Dílčí základ daně",{"$f":"D29+J20+J21","v":0}]
[null,"Noční příplatek  ",{"$f":"INDEX('Tabulky mzdy'!K69:K73,MATCH(C5,'Tabulky mzdy'!B69:B73,0),1)","v":0},{"$f":"C23*E15","v":0},null,"Stravné",{"$f":"INDEX('Tabulky mzdy'!O69:O73,MATCH(C5,'Tabulky mzdy'!B69:B73,0),1)","v":0},null,"Dílčí základ daně zaokr.",{"$f":"CEILING(J22,100)","v":0}]
[null,null,null,null,null,null,null,null,"Daň před slevou",{"$f":"J23*0.15","v":0}]
[null,"Odměna  ",{"$f":"INDEX('Tabulky mzdy'!L69:L73,MATCH(C5,'Tabulky mzdy'!B69:B73,0),1)","v":0},{"$f":"C25","v":0},null,null,null,null,"Sleva na dani",{"$f":"INDEX('Tabulky mzdy'!P69:P73,MATCH(C5,'Tabulky mzdy'!B69:B73,0),1)","v":0}]
[null,"Řádná dovolená  ",{"$f":"INDEX('Tabulky mzdy'!M69:M73,MATCH(C5,'Tabulky mzdy'!B69:B73,0),1)","v":0},{"$f":"C26*I16","v":0},null,null,null,null,"Dań po slevách",{"$f":"J24-J25-L21","v":0}]
[null,"Náhrada za svátek",{"$f":"INDEX('Tabulky mzdy'!N69:N73,MATCH(C5,'Tabulky mzdy'!B69:B73,0),1)","v":0},{"$f":"C27*I16","v":0}]
[]
[null,null,"Hrubá mzda",{"$f":"SUM(D20+D21+D22+D23+D24+D25+D26+D27)","v":0},null,null,null,null,"MZDA K VÝPLATĚ",{"$f":"D29-G20-G21-G22-(-G23)","v":0}]

{"sheet":"Říjen","index":12,"n_rows":29,"n_cols":12,"rows_kept":29,"cut":false,"hidden":false,"merged":[]}
[]
[]
[null,"Říjen"]
[]
[null,"Osobní číslo",1]
[]
[null,"Jméno",{"$f":"INDEX('Tabulky mzdy'!C77:C81,MATCH(C5,'Tabulky mzdy'!B77:B81,0),1)","v":0}]
[]
[null,"Středisko",{"$f":"INDEX('Tabulky mzdy'!D77:D81,MATCH(C5,'Tabulky mzdy'!B77:B81,0),1)","v":0}]
[]
[]
[]
[]
[null,"Prac.doba","odpracováno (hod.)","odpracováno so+ne (hod)","odpracováno noční (hod)",null,null,"Tarifní mzda",{"$f":"INDEX('Tabulky mzdy'!F77:F81,MATCH(C5,'Tabulky mzdy'!B77:B81,0),1)","v":0}]
[null,null,{"$f":"INDEX('Tabulky mzdy'!E77:E81,MATCH(C5,'Tabulky mzdy'!B77:B81,0),1)","v":0},{"$f":"INDEX('Tabulky mzdy'!H77:H81,MATCH(C5,'Tabulky mzdy'!B77:B81,0),1)","v":0},{"$f":"INDEX('Tabulky mzdy'!J77:J81,MATCH(C5,'Tabulky mzdy'!B77:B81,0),1)","v":0}]
[null,null,null,null,null,null,null,"Prům. hod. výdělek",{"$f":"INDEX('Tabulky mzdy'!G77:G81,MATCH(C5,'Tabulky mzdy'!B77:B81,0),1)","v":0}]
[]
[]
[null,"Složky mzdy","Hodiny","Kč",null,"Srážky","Kč",null,"Přehled","Kč"]
[null,"Časová mzda",{"$f":"C15","v":0},{"$f":"C20*I14","v":0},null,"Sociální 6,5 %",{"$f":"socpoj(D29)","v":0},null,"Sociální pojištění 25 %",{"$f":"socpoj25(D29)","v":0},"Počet dětí",{"$f":"INDEX('Tabulky mzdy'!Q77:Q81,MATCH(C5,'Tabulky mzdy'!B77:B81,0),1)","v":0}]
[null,null,null,null,null,"Zdravotní 4,5 %",{"$f":"zdrav(D29)","v":0},null,"Zdravotní pojištění 9 %",{"$f":"zdravpoj9(D29)","v":0},"Daňové zvýhodnění na dítě",{"$f":"IF(L20=1,1117,IF(L20=2,2534,IF(L20>2,4251,IF(L20=0,0))))","v":0}]
[null,"Příplatek SO+NE  ",{"$f":"INDEX('Tabulky mzdy'!I77:I81,MATCH(C5,'Tabulky mzdy'!B77:B81,0),1)","v":0},{"$f":"C22*D15","v":0},null,"Daň zálohová",{"$f":"J26","v":0},null,"Dílčí základ daně",{"$f":"D29+J20+J21","v":0}]
[null,"Noční příplatek  ",{"$f":"INDEX('Tabulky mzdy'!K77:K81,MATCH(C5,'Tabulky mzdy'!B77:B81,0),1)","v":0},{"$f":"C23*E15","v":0},null,"Stravné",{"$f":"INDEX('Tabulky mzdy'!O77:O81,MATCH(C5,'Tabulky mzdy'!B77:B81,0),1)","v":0},null,"Dílčí základ daně zaokr.",{"$f":"CEILING(J22,100)","v":0}]
[null,null,null,null,null,null,null,null,"Daň před slevou",{"$f":"J23*0.15","v":0}]
[null,"Odměna  ",{"$f":"INDEX('Tabulky mzdy'!L77:L81,MATCH(C5,'Tabulky mzdy'!B77:B81,0),1)","v":0},{"$f":"C25","v":0},null,null,null,null,"Sleva na dani",{"$f":"INDEX('Tabulky mzdy'!P77:P81,MATCH(C5,'Tabulky mzdy'!B77:B81,0),1)","v":0}]
[null,"Řádná dovolená  ",{"$f":"INDEX('Tabulky mzdy'!M77:M81,MATCH(C5,'Tabulky mzdy'!B77:B81,0),1)","v":0},{"$f":"C26*I16","v":0},null,null,null,null,"Dań po slevách",{"$f":"J24-J25-L21","v":0}]
[null,"Náhrada za svátek",{"$f":"INDEX('Tabulky mzdy'!N77:N81,MATCH(C5,'Tabulky mzdy'!B77:B81,0),1)","v":0},{"$f":"C27*I16","v":0}]
[]
[null,null,"Hrubá mzda",{"$f":"SUM(D20+D21+D22+D23+D24+D25+D26+D27)","v":0},null,null,null,null,"MZDA K VÝPLATĚ",{"$f":"D29-G20-G21-G22-(-G23)","v":0}]

{"sheet":"Listopad","index":13,"n_rows":29,"n_cols":12,"rows_kept":29,"cut":false,"hidden":false,"merged":[]}
[]
[]
[null,"Listopad"]
[]
[null,"Osobní číslo",1]
[]
[null,"Jméno",{"$f":"INDEX('Tabulky mzdy'!C85:C89,MATCH(C5,'Tabulky mzdy'!B85:B89,0),1)","v":0}]
[]
[null,"Středisko",{"$f":"INDEX('Tabulky mzdy'!D85:D89,MATCH(C5,'Tabulky mzdy'!B85:B89,0),1)","v":0}]
[]
[]
[]
[]
[null,"Prac.doba","odpracováno (hod.)","odpracováno so+ne (hod)","odpracováno noční (hod)",null,null,"Tarifní mzda",{"$f":"INDEX('Tabulky mzdy'!F85:F89,MATCH(C5,'Tabulky mzdy'!B85:B89,0),1)","v":0}]
[null,null,{"$f":"INDEX('Tabulky mzdy'!E85:E89,MATCH(C5,'Tabulky mzdy'!B85:B89,0),1)","v":0},{"$f":"INDEX('Tabulky mzdy'!H85:H89,MATCH(C5,'Tabulky mzdy'!B85:B89,0),1)","v":0},{"$f":"INDEX('Tabulky mzdy'!J85:J89,MATCH(C5,'Tabulky mzdy'!B85:B89,0),1)","v":0}]
[null,null,null,null,null,null,null,"Prům. hod. výdělek",{"$f":"INDEX('Tabulky mzdy'!G85:G89,MATCH(C5,'Tabulky mzdy'!B85:B89,0),1)","v":0}]
[]
[]
[null,"Složky mzdy","Hodiny","Kč",null,"Srážky","Kč",null,"Přehled","Kč"]
[null,"Časová mzda",{"$f":"C15","v":0},{"$f":"C20*I14","v":0},null,"Sociální 6,5 %",{"$f":"socpoj(D29)","v":0},null,"Sociální pojištění 25 %",{"$f":"socpoj25(D29)","v":0},"Počet dětí",{"$f":"INDEX('Tabulky mzdy'!Q85:Q89,MATCH(C5,'Tabulky mzdy'!B85:B89,0),1)","v":0}]
[null,null,null,null,null,"Zdravotní 4,5 %",{"$f":"zdrav(D29)","v":0},null,"Zdravotní pojištění 9 %",{"$f":"zdravpoj9(D29)","v":0},"Daňové zvýhodnění na dítě",{"$f":"IF(L20=1,1117,IF(L20=2,2534,IF(L20>2,4251,IF(L20=0,0))))","v":0}]
[null,"Příplatek SO+NE  ",{"$f":"INDEX('Tabulky mzdy'!I85:I89,MATCH(C5,'Tabulky mzdy'!B85:B89,0),1)","v":0},{"$f":"C22*D15","v":0},null,"Daň zálohová",{"$f":"J26","v":0},null,"Dílčí základ daně",{"$f":"D29+J20+J21","v":0}]
[null,"Noční příplatek  ",{"$f":"INDEX('Tabulky mzdy'!K85:K89,MATCH(C5,'Tabulky mzdy'!B85:B89,0),1)","v":0},{"$f":"C23*E15","v":0},null,"Stravné",{"$f":"INDEX('Tabulky mzdy'!O85:O89,MATCH(C5,'Tabulky mzdy'!B85:B89,0),1)","v":0},null,"Dílčí základ daně zaokr.",{"$f":"CEILING(J22,100)","v":0}]
[null,"Příplatek ztížené prosř.",null,null,null,null,null,null,"Daň před slevou",{"$f":"J23*0.15","v":0}]
[null,"Odměna  ",{"$f":"INDEX('Tabulky mzdy'!L85:L89,MATCH(C5,'Tabulky mzdy'!B85:B89,0),1)","v":0},{"$f":"C25","v":0},null,null,null,null,"Sleva na dani",{"$f":"INDEX('Tabulky mzdy'!P85:P89,MATCH(C5,'Tabulky mzdy'!B85:B89,0),1)","v":0}]
[null,"Řádná dovolená  ",{"$f":"INDEX('Tabulky mzdy'!M85:M89,MATCH(C5,'Tabulky mzdy'!B85:B89,0),1)","v":0},{"$f":"C26*I16","v":0},null,null,null,null,"Dań po slevách",{"$f":"J24-J25-L21","v":0}]
[null,"Náhrada za svátek",{"$f":"INDEX('Tabulky mzdy'!N85:N89,MATCH(C5,'Tabulky mzdy'!B85:B89,0),1)","v":0},{"$f":"C27*I16","v":0}]
[]
[null,null,"Hrubá mzda",{"$f":"SUM(D20+D21+D22+D23+D24+D25+D26+D27)","v":0},null,null,null,null,"MZDA K VÝPLATĚ",{"$f":"D29-G20-G21-G22-(-G23)","v":0}]

{"sheet":"Prosinec","index":14,"n_rows":29,"n_cols":12,"rows_kept":29,"cut":false,"hidden":false,"merged":[]}
[]
[]
[null,"Prosinec"]
[]
[null,"Osobní číslo",1]
[]
[null,"Jméno",{"$f":"INDEX('Tabulky mzdy'!C93:C97,MATCH(C5,'Tabulky mzdy'!B93:B97,0),1)","v":0}]
[]
[null,"Středisko",{"$f":"INDEX('Tabulky mzdy'!D93:D97,MATCH(C5,'Tabulky mzdy'!B93:B97,0),1)","v":0}]
[]
[]
[]
[]
[null,"Prac.doba","odpracováno (hod.)","odpracováno so+ne (hod)","odpracováno noční (hod)",null,null,"Tarifní mzda",{"$f":"INDEX('Tabulky mzdy'!F93:F97,MATCH(C5,'Tabulky mzdy'!B93:B97,0),1)","v":0}]
[null,null,{"$f":"INDEX('Tabulky mzdy'!E93:E97,MATCH(C5,'Tabulky mzdy'!B93:B97,0),1)","v":0},{"$f":"INDEX('Tabulky mzdy'!H93:H97,MATCH(C5,'Tabulky mzdy'!B93:B97,0),1)","v":0},{"$f":"INDEX('Tabulky mzdy'!J93:J97,MATCH(C5,'Tabulky mzdy'!B93:B97,0),1)","v":0}]
[null,null,null,null,null,null,null,"Prům. hod. výdělek",{"$f":"INDEX('Tabulky mzdy'!G93:G97,MATCH(C5,'Tabulky mzdy'!B93:B97,0),1)","v":0}]
[]
[]
[null,"Složky mzdy","Hodiny","Kč",null,"Srážky","Kč",null,"Přehled","Kč"]
[null,"Časová mzda",{"$f":"C15","v":0},{"$f":"C20*I14","v":0},null,"Sociální 6,5 %",{"$f":"socpoj(D29)","v":0},null,"Sociální pojištění 25 %",{"$f":"socpoj25(D29)","v":0},"Počet dětí",{"$f":"INDEX('Tabulky mzdy'!Q93:Q97,MATCH(C5,'Tabulky mzdy'!B93:B97,0),1)","v":0}]
[null,null,null,null,null,"Zdravotní 4,5 %",{"$f":"zdrav(D29)","v":0},null,"Zdravotní pojištění 9 %",{"$f":"zdravpoj9(D29)","v":0},"Daňové zvýhodnění na dítě",{"$f":"IF(L20=1,1117,IF(L20=2,2534,IF(L20>2,4251,IF(L20=0,0))))","v":0}]
[null,"Příplatek SO+NE  ",{"$f":"INDEX('Tabulky mzdy'!I93:I97,MATCH(C5,'Tabulky mzdy'!B93:B97,0),1)","v":0},{"$f":"C22*D15","v":0},null,"Daň zálohová",{"$f":"J26","v":0},null,"Dílčí základ daně",{"$f":"D29+J20+J21","v":0}]
[null,"Noční příplatek  ",{"$f":"INDEX('Tabulky mzdy'!K93:K97,MATCH(C5,'Tabulky mzdy'!B93:B97,0),1)","v":0},{"$f":"C23*E15","v":0},null,"Stravné",{"$f":"INDEX('Tabulky mzdy'!O93:O97,MATCH(C5,'Tabulky mzdy'!B93:B97,0),1)","v":0},null,"Dílčí základ daně zaokr.",{"$f":"CEILING(J22,100)","v":0}]
[null,null,null,null,null,null,null,null,"Daň před slevou",{"$f":"J23*0.15","v":0}]
[null,"Odměna  ",{"$f":"INDEX('Tabulky mzdy'!L93:L97,MATCH(C5,'Tabulky mzdy'!B93:B97,0),1)","v":0},{"$f":"C25","v":0},null,null,null,null,"Sleva na dani",{"$f":"INDEX('Tabulky mzdy'!P93:P97,MATCH(C5,'Tabulky mzdy'!B93:B97,0),1)","v":0}]
[null,"Řádná dovolená  ",{"$f":"INDEX('Tabulky mzdy'!M93:M97,MATCH(C5,'Tabulky mzdy'!B93:B97,0),1)","v":0},{"$f":"C26*I16","v":0},null,null,null,null,"Dań po slevách",{"$f":"J24-J25-L21","v":0}]
[null,"Náhrada za svátek",{"$f":"INDEX('Tabulky mzdy'!N93:N97,MATCH(C5,'Tabulky mzdy'!B93:B97,0),1)","v":0},{"$f":"C27*I16","v":0}]
[]
[null,null,"Hrubá mzda",{"$f":"SUM(D20+D21+D22+D23+D24+D25+D26+D27)","v":0},null,null,null,null,"MZDA K VÝPLATĚ",{"$f":"D29-G20-G21-G22-(-G23)","v":0}]

{"sheet":"Tabulky daně","index":15,"n_rows":7,"n_cols":16,"rows_kept":7,"cut":false,"hidden":false,"merged":[]}
[]
[null,"Osobní číslo zaměstnance","Jméno","Středisko","Úhrn příjmů","Úhrn pojistného","Úhrn sražených záloh","Vyplacené daňové bonusy","hodnota darů","úroky z úvěrů","penzijní připojištění","životní pojištění","odborové příspěvky","Sleva na poplatníka","Sleva na manželku","Počet dětí"]
[null,9001,null,null,0,0,0,0]
[null,9002,null,null,0,0,0,0]
[null,9003,null,null,0,0,0,0]
[null,9004,null,null,0,0,0,0]
[null,9005,null,null,0,0,0,0]

{"sheet":"Roční zúčtování daně ","index":16,"n_rows":34,"n_cols":3,"rows_kept":34,"cut":false,"hidden":false,"merged":[]}
[]
["Osobní číslo",9001]
[]
["Jméno",{"$f":"INDEX('Tabulky daně'!C3:C7,MATCH('Roční zúčtování daně '!B2,'Tabulky daně'!B3:B7,0))","v":0}]
[]
["Středisko",{"$f":"INDEX('Tabulky daně'!D3:D7,MATCH('Roční zúčtování daně '!B2,'Tabulky daně'!B3:B7,0))","v":0}]
[]
[]
[null,"Výpočet roční daňové povinnosti"]
[null,"Úhrn příjmů",{"$f":"INDEX('Tabulky daně'!E3:E7,MATCH('Roční zúčtování daně '!B2,'Tabulky daně'!B3:B7,0))","v":0}]
[null,"Úhrn pojistného",{"$f":"INDEX('Tabulky daně'!F3:F7,MATCH('Roční zúčtování daně '!B2,'Tabulky daně'!B3:B7,0))","v":0}]
[null,"Dílčí základ daně",{"$f":"C10+C11","v":0}]
[null,"Nezdanitelné částky"]
[null,"hodnota darů",{"$f":"INDEX('Tabulky daně'!I3:I7,MATCH('Roční zúčtování daně '!B2,'Tabulky daně'!B3:B7,0))","v":0}]
[null,"úroky z úvěrů",{"$f":"INDEX('Tabulky daně'!J3:J7,MATCH('Roční zúčtování daně '!B2,'Tabulky daně'!B3:B7,0))","v":0}]
[null,"penzijní připojištění",{"$f":"INDEX('Tabulky daně'!K3:K7,MATCH('Roční zúčtování daně '!B2,'Tabulky daně'!B3:B7,0))","v":0}]
[null,"životní pojištění",{"$f":"INDEX('Tabulky daně'!L3:L7,MATCH('Roční zúčtování daně '!B2,'Tabulky daně'!B3:B7,0))","v":0}]
[null,"odborové příspěvky",{"$f":"INDEX('Tabulky daně'!M3:M7,MATCH('Roční zúčtování daně '!B2,'Tabulky daně'!B3:B7,0))","v":0}]
[]
[null,"Základ daně snížený o nezdanitelné částky",{"$f":"C12-C14-C15-C16-C17-C18","v":0}]
[null,"Základ daně snížený o nezdanitelné částky zaokr.",{"$f":"FLOOR(C20,100)","v":0}]
[]
[]
[null,"Daň 15 %",{"$f":"C21*0.15","v":0}]
[null,"Sleva - poplatník",{"$f":"INDEX('Tabulky daně'!N3:N7,MATCH('Roční zúčtování daně '!B2,'Tabulky daně'!B3:B7,0))","v":0}]
[null,"Sleva - manžel/ka",{"$f":"INDEX('Tabulky daně'!O3:O7,MATCH('Roční zúčtování daně '!B2,'Tabulky daně'!B3:B7,0))","v":0}]
[null,"Počet dětí",{"$f":"INDEX('Tabulky daně'!P3:P7,MATCH('Roční zúčtování daně '!B2,'Tabulky daně'!B3:B7,0))","v":0}]
[null,"Daň po uplatnění slev",{"$f":"C24-C25-C26","v":0}]
[null,"Daňové zvýhodnění na dítě",{"$f":"IF(C27=1,13404,IF(C27=2,30408,IF(C27>2,51012,)))","v":0}]
[null,"Úhrn sražených záloh",{"$f":"INDEX('Tabulky daně'!G3:G7,MATCH('Roční zúčtování daně '!B2,'Tabulky daně'!B3:B7,0))","v":0}]
[null,"Vyplacené daňové bonusy",{"$f":"INDEX('Tabulky daně'!H3:H7,MATCH('Roční zúčtování daně '!B2,'Tabulky daně'!B3:B7,0))","v":0}]
[]
[]
[null,"Doplatek/Přeplatek daně",{"$f":"C28-C29","v":0}]